{"text_format":"1","workbook":"xlsx","n_sheets":2,"sheets":["Mehraufwand_Minderertrag","Erntekostenfreie_Erlöse"],"not_rendered":{"charts":0,"images":14,"macros":1,"external_links":0,"defined_names":49,"comments":0,"pivot_tables":0},"unopened":[],"bounds":{"document_bytes":16777216,"sheet_cells":100000,"rows_first":2000,"rows_last":500,"rows_between":2000,"halvings":0,"cell_chars":16384,"cell_head_chars":4096},"cells_cut":0,"cells_raw":0,"read":"whole","date_system":"1900"}

{"sheet":"Mehraufwand_Minderertrag","index":0,"n_rows":1797,"n_cols":214,"rows_kept":1797,"cut":false,"hidden":false,"merged":[[6,3,6,13],[1613,171,1613,181],[1619,171,1619,178],[1621,171,1621,178],[1622,171,1622,176],[1637,171,1637,178],[1638,171,1638,178],[1639,171,1639,178],[1630,171,1630,178],[1631,171,1631,178],[1633,171,1633,178],[1634,171,1634,178],[1635,171,1635,178],[1626,171,1626,178],[1629,171,1629,178],[1623,171,1623,176],[1624,171,1624,176],[1627,171,1627,176],[964,171,964,181],[971,171,971,176],[973,171,973,176],[974,171,974,176],[1146,171,1146,176],[977,119,977,124],[979,171,979,176],[980,171,980,176],[982,171,982,176],[976,171,976,176],[977,171,977,176],[1143,119,1143,124],[973,119,973,124],[974,119,974,124],[975,119,975,124],[978,119,978,124],[982,119,982,124],[1124,119,1124,129],[1131,171,1131,174],[1143,171,1143,176],[1134,120,1134,122],[1145,181,1146,182],[1134,172,1134,174],[1134,176,1134,178],[1134,124,1134,126],[1776,203,1776,213],[644,171,644,181],[965,171,965,181],[1125,171,1125,181],[1288,171,1288,181],[1617,176,1617,180],[1631,119,1631,126],[1619,119,1619,126],[1621,119,1621,126],[1454,119,1454,124],[1455,119,1455,124],[1456,119,1456,124],[1618,171,1618,178],[965,119,965,129],[1125,119,1125,129],[1448,119,1448,129],[1148,171,1148,176],[1287,171,1287,181],[1299,171,1299,176],[1124,171,1124,181],[1145,171,1145,176],[1640,119,1640,126],[1613,119,1613,129],[1625,119,1625,124],[1628,119,1628,124],[1617,124,1617,128],[1144,119,1144,124],[1145,119,1145,124],[1146,119,1146,124],[1148,119,1148,124],[1447,119,1447,129],[1632,119,1632,126],[1634,119,1634,126],[1635,119,1635,126],[1636,119,1636,126],[1638,119,1638,126],[1627,119,1627,126],[1630,119,1630,126],[1458,119,1458,124],[1618,119,1618,126],[1622,119,1622,124],[1623,119,1623,124],[1624,119,1624,124],[1302,171,1302,176],[1639,119,1639,126],[1145,129,1146,130],[321,171,321,181],[327,171,327,173],[330,171,330,173],[327,174,327,176],[328,174,328,176],[330,174,330,176],[331,174,331,176],[643,171,643,181],[654,171,654,176],[647,175,648,178],[331,122,331,124],[483,119,483,129],[491,119,491,124],[492,119,492,124],[493,119,493,124],[810,119,810,120],[818,119,818,124],[325,171,325,172],[656,171,656,176],[657,171,657,176],[658,171,658,176],[1144,171,1144,176],[660,171,660,176],[494,119,494,124],[495,119,495,124],[497,119,497,124],[803,119,803,129],[819,119,819,124],[820,119,820,124],[484,119,484,129],[331,70,331,72],[492,67,492,72],[493,67,493,72],[494,67,494,72],[483,67,483,77],[484,67,484,77],[971,119,971,124],[1,3,1,13],[321,119,321,129],[325,119,325,120],[327,119,327,121],[330,119,330,121],[327,122,327,124],[328,122,328,124],[330,122,330,124],[165,35,165,36],[161,35,161,45],[327,67,327,69],[330,67,330,69],[327,70,327,72],[328,70,328,72],[330,70,330,72],[325,67,325,68],[321,67,321,77],[7,3,7,13],[491,67,491,72],[8,3,8,13],[804,119,804,129],[175,35,176,38],[964,119,964,129],[1143,67,1143,72],[1144,67,1144,72],[1145,67,1145,72],[1146,67,1146,72],[495,67,495,72],[497,67,497,72],[654,67,654,72],[656,67,656,72],[643,67,643,77],[974,67,974,72],[647,70,648,72],[644,67,644,77],[1124,67,1124,77],[982,67,982,72],[1134,68,1134,70],[976,67,976,72],[977,67,977,72],[979,67,979,72],[980,67,980,72],[657,67,657,72],[658,67,658,72],[660,67,660,72],[971,67,971,72],[973,67,973,72],[1639,67,1639,74],[1287,67,1287,77],[1447,67,1447,77],[1148,67,1148,72],[1298,67,1298,72],[1299,67,1299,72],[1617,72,1617,76],[1288,67,1288,77],[1448,67,1448,77],[1625,67,1625,72],[1626,67,1626,72],[1302,67,1302,72],[1640,67,1640,74],[1641,67,1641,74],[1613,67,1613,77],[1125,67,1125,77],[1632,67,1632,74],[1633,67,1633,74],[1635,67,1635,74],[1636,67,1636,74],[1637,67,1637,74],[1628,67,1628,74],[1631,67,1631,74],[1619,67,1619,74],[1621,67,1621,74],[1454,67,1454,72],[1455,67,1455,72],[1456,67,1456,72],[1458,67,1458,72],[1618,67,1618,74],[1629,67,1629,72],[1622,67,1622,72],[1623,67,1623,72],[1624,67,1624,72],[1134,72,1134,74],[1145,77,1146,78],[964,67,964,77],[965,67,965,77],[15,5,15,11],[13,5,13,11],[11,5,11,11],[12,5,12,11],[167,35,167,38],[168,35,168,38],[165,40,165,43],[169,35,169,38],[170,35,170,38],[22,3,22,8],[24,3,24,8],[25,3,25,8],[23,3,23,8],[23,10,23,12],[24,10,24,12],[25,10,25,12]]}
[]
[null,null,null,"Start"]
[]
[]
[]
[]
[null,null,null,"Trinkwasserschutz-Tool"]
[null,null,null,"Berechnung von Mehraufwand und Minderertrag infolge des"]
[null,null,null," Trinkwasserschutzes im Wald"]
[]
[]
[null,null,null,null,null,"erstellt von der "]
[null,null,null,null,null,"WSL Forschungsgruppe Forstliche Produktionssysteme"]
[]
[]
[null,null,null,null,null,"Februar 2012"]
[]
[]
[]
[]
[]
[]
[null,null,null,"Kontaktadressen:"]
[null,null,null,"Clemens Blattert, +41 44 7392 494, clemens.blattert@wsl.ch",null,null,null,null,null,null,"Eidg. Forschungsanstalt WSL"]
[null,null,null,"Dr. Anton Bürgi, +41 44 7392 241, anton.buergi@wsl.ch",null,null,null,null,null,null,"Zürcherstrasse 111"]
[null,null,null,"Dr. Renato Lemm, +41 44 7392 478, renato.lemm@wsl.ch",null,null,null,null,null,null,"CH-8903 Birmensdorf"]
[]
[]
[]
[]
[]
[]
[]
[]
[]
[]
[]
[]
[]
[]
[]
[]
[]
[]
[]
[]
[]
[]
[]
[]
[]
[]
[]
[]
[]
[]
[]
[]
[]
[]
[]
[]
[]
[]
[]
[]
[]
[]
[]
[]
[]
[]
[]
[]
[]
[]
[]
[]
[]
[]
[]
[]
[]
[]
[]
[]
[]
[]
[]
[]
[]
[]
[]
[]
[]
[]
[]
[]
[]
[]
[]
[]
[]
[]
[]
[]
[]
[]
[]
[]
[]
[]
[]
[]
[]
[]
[]
[]
[]
[]
[]
[]
[]
[]
[]
[]
[]
[]
[]
[]
[]
[]
[]
[]
[]
[]
[]
[]
[]
[]
[]
[]
[]
[]
[]
[]
[]
[]
[]
[]
[]
[]
[]
[]
[]
[]
[]
[]
[]
[]
[]
[null,null,null,null,null,null,null,null,null,null,null,null,null,null,null,null,null,null,null,null,null,null,null,null,null,null,null,null,null,null,null,null,null,null,null,"Arbeitsobjekt"]
[]
[]
[]
[null,null,null,null,null,null,null,null,null,null,null,null,null,null,null,null,null,null,null,null,null,null,null,null,null,null,null,null,null,null,null,null,null,null,null,"Arbeitsort",null,null,null,null,"Heimenholz in Rheinfelden (AG)"]
[]
[null,null,null,null,null,null,null,null,null,null,null,null,null,null,null,null,null,null,null,null,null,null,null,null,null,null,null,null,null,null,null,null,null,null,null,"Grösse Grundwasserschutzzone S2 ",null,null,null,null,null,null,null,14,"ha"]
[null,null,null,null,null,null,null,null,null,null,null,null,null,null,null,null,null,null,null,null,null,null,null,null,null,null,null,null,null,null,null,null,null,null,null,"Grösse Grundwasserschutzzone S3 ",null,null,null,null,null,null,null,47,"ha"]
[null,null,null,null,null,null,null,null,null,null,null,null,null,null,null,null,null,null,null,null,null,null,null,null,null,null,null,null,null,null,null,null,null,null,null,"Jährliche Nutzungsmenge in S2 ",null,null,null,null,null,null,null,158,"m3/a"]
[null,null,null,null,null,null,null,null,null,null,null,null,null,null,null,null,null,null,null,null,null,null,null,null,null,null,null,null,null,null,null,null,null,null,null,"Jährliche Nutzungsmenge in S3",null,null,null,null,null,null,null,531,"m3/a"]
[]
[]
[null,null,null,null,null,null,null,null,null,null,null,null,null,null,null,null,null,null,null,null,null,null,null,null,null,null,null,null,null,null,null,null,null,null,null,"Auswahl des Holzernteverfahrens:"]
[]
[null,null,null,null,null,null,null,null,null,null,null,null,null,null,null,null,null,null,null,null,null,null,null,null,null,null,null,null,null,null,null,null,null,null,null,"Holzernteverfahren (HV)",null,null,null,"   Prozess: "]
[null,null,null,null,null,null,null,null,null,null,null,null,null,null,null,null,null,null,null,null,null,null,null,null,null,null,null,null,null,null,null,null,null,null,null,null,null,null,null,"   \"Fällen / Aufarbeiten\"",null,null,"   \"Rücken\""]
[]
[null,null,null,null,null,null,null,null,null,null,null,null,null,null,null,null,null,null,null,null,null,null,null,null,null,null,null,null,null,null,null,null,null,null,null,"HV 1)   Motormanulles Verfahren",null,null,null,"   motormanuell ",null,null,"   Forstspezialschlepper"]
[]
[]
[null,null,null,null,null,null,null,null,null,null,null,null,null,null,null,null,null,null,null,null,null,null,null,null,null,null,null,null,null,null,null,null,null,null,null,"HV 2)   Vollmechanisiertes Verfahren",null,null,null,"   Harvester",null,null,"   Forwarder"]
[]
[]
[null,null,null,null,null,null,null,null,null,null,null,null,null,null,null,null,null,null,null,null,null,null,null,null,null,null,null,null,null,null,null,null,null,null,null,"HV 3)   Verfahren für Steillagen",null,null,null,"   motormanuell",null,null,"   Mobilseilkran"]
[]
[]
[]
[]
[]
[]
[]
[]
[]
[]
[]
[]
[]
[]
[]
[]
[]
[]
[]
[]
[]
[]
[]
[]
[]
[]
[]
[]
[]
[]
[]
[]
[]
[]
[]
[]
[]
[]
[]
[]
[]
[]
[]
[]
[]
[]
[]
[]
[]
[]
[]
[]
[]
[]
[]
[]
[]
[]
[]
[]
[]
[]
[]
[]
[]
[]
[]
[]
[]
[]
[]
[]
[]
[]
[]
[]
[]
[]
[]
[]
[]
[]
[]
[]
[]
[]
[]
[]
[]
[]
[]
[]
[]
[]
[]
[]
[]
[]
[]
[]
[]
[]
[]
[]
[]
[]
[]
[]
[]
[]
[]
[]
[]
[]
[]
[]
[]
[]
[]
[]
[]
[]
[]
[]
[]
[]
[]
[]
[]
[]
[]
[]
[]
[]
[]
[]
[null,null,null,null,null,null,null,null,null,null,null,null,null,null,null,null,null,null,null,null,null,null,null,null,null,null,null,null,null,null,null,null,null,null,null,null,null,null,null,null,null,null,null,null,null,null,null,null,null,null,null,null,null,null,null,null,null,null,null,null,null,null,null,null,null,null,null,"Holzernteverfahren 1    ",null,null,null,null,null,null,null,null,null,null,"HV 1",null,null,null,null,null,null,null,null,null,null,null,null,null,null,null,null,null,null,null,null,null,null,null,null,null,null,null,null,null,null,null,null,null,null,null,null,null,null,null,null,"Holzernteverfahren 2    ",null,null,null,null,null,null,null,null,null,null,"HV 2",null,null,null,null,null,null,null,null,null,null,null,null,null,null,null,null,null,null,null,null,null,null,null,null,null,null,null,null,null,null,null,null,null,null,null,null,null,null,null,null,"Holzernteverfahren 3    ",null,null,null,null,null,null,null,null,null,null,"HV 3"]
[null,null,null,null,null,null,null,null,null,null,null,null,null,null,null,null,null,null,null,null,null,null,null,null,null,null,null,null,null,null,null,null,null,null,null,null,null,null,null,null,null,null,null,null,null,null,null,null,null,null,null,null,null,null,null,null,null,null,null,null,null,null,null,null,null,null,null,"Motormanuelles Verfahren",null,null,null,null,null,null,null,null,null,null,null,null,null,null,null,null,null,null,null,null,null,null,null,null,null,null,null,null,null,null,null,null,null,null,null,null,null,null,null,null,null,null,null,null,null,null,null,null,null,null,null,"Vollmechanisiertes Verfahren",null,null,null,null,null,null,null,null,null,null,null,null,null,null,null,null,null,null,null,null,null,null,null,null,null,null,null,null,null,null,null,null,null,null,null,null,null,null,null,null,null,null,null,null,null,null,null,null,null,null,null,"Verfahren für Steillagen"]
[]
[]
[null,null,null,null,null,null,null,null,null,null,null,null,null,null,null,null,null,null,null,null,null,null,null,null,null,null,null,null,null,null,null,null,null,null,null,null,null,null,null,null,null,null,null,null,null,null,null,null,null,null,null,null,null,null,null,null,null,null,null,null,null,null,null,null,null,null,null,"Kostenansätze",null,null,null,null,null,null,null,null,null,null,null,null,null,null,null,null,null,null,null,null,null,null,null,null,null,null,null,null,null,null,null,null,null,null,null,null,null,null,null,null,null,null,null,null,null,null,null,null,null,null,null,"Kostenansätze",null,null,null,null,null,null,null,null,null,null,null,null,null,null,null,null,null,null,null,null,null,null,null,null,null,null,null,null,null,null,null,null,null,null,null,null,null,null,null,null,null,null,null,null,null,null,null,null,null,null,null,"Kostenansätze"]
[]
[null,null,null,null,null,null,null,null,null,null,null,null,null,null,null,null,null,null,null,null,null,null,null,null,null,null,null,null,null,null,null,null,null,null,null,null,null,null,null,null,null,null,null,null,null,null,null,null,null,null,null,null,null,null,null,null,null,null,null,null,null,null,null,null,null,null,null,"Fällen / Aufarbeiten:",null,null,"motormanuelle Holzhauerei",null,null,null,null,75,"Fr./h",null,null,null,null,null,null,null,null,null,null,null,null,null,null,null,null,null,null,null,null,null,null,null,null,null,null,null,null,null,null,null,null,null,null,null,null,null,null,null,null,null,null,"Fällen / Aufarbeiten:",null,null,"Harvester",null,null,null,null,300,"Fr./h",null,null,null,null,null,null,null,null,null,null,null,null,null,null,null,null,null,null,null,null,null,null,null,null,null,null,null,null,null,null,null,null,null,null,null,null,null,null,null,null,null,null,"Fällen / Aufarbeiten:",null,null,"motormanuelle Holzhauerei",null,null,null,null,75,"Fr./h"]
[null,null,null,null,null,null,null,null,null,null,null,null,null,null,null,null,null,null,null,null,null,null,null,null,null,null,null,null,null,null,null,null,null,null,null,null,null,null,null,null,null,null,null,null,null,null,null,null,null,null,null,null,null,null,null,null,null,null,null,null,null,null,null,null,null,null,null,null,null,null,"(Personal + Motorsäge)",null,null,null,null,null,null,null,null,null,null,null,null,null,null,null,null,null,null,null,null,null,null,null,null,null,null,null,null,null,null,null,null,null,null,null,null,null,null,null,null,null,null,null,null,null,null,null,null,null,null,null,"(Maschinist + Harvester)",null,null,null,null,null,null,null,null,null,null,null,null,null,null,null,null,null,null,null,null,null,null,null,null,null,null,null,null,null,null,null,null,null,null,null,null,null,null,null,null,null,null,null,null,null,null,null,null,null,null,null,"(Personal + Motorsäge)"]
[]
[null,null,null,null,null,null,null,null,null,null,null,null,null,null,null,null,null,null,null,null,null,null,null,null,null,null,null,null,null,null,null,null,null,null,null,null,null,null,null,null,null,null,null,null,null,null,null,null,null,null,null,null,null,null,null,null,null,null,null,null,null,null,null,null,null,null,null,"Rücken:",null,null,"Forstspezialschlepper",null,null,null,null,190,"Fr./h",null,null,null,null,null,null,null,null,null,null,null,null,null,null,null,null,null,null,null,null,null,null,null,null,null,null,null,null,null,null,null,null,null,null,null,null,null,null,null,null,null,null,"Rücken:",null,null,"Forwarder",null,null,null,null,200,"Fr./h",null,null,null,null,null,null,null,null,null,null,null,null,null,null,null,null,null,null,null,null,null,null,null,null,null,null,null,null,null,null,null,null,null,null,null,null,null,null,null,null,null,null,"Rücken:",null,null,"Mobilseilkran",null,null,null,null,230,"Fr./h"]
[null,null,null,null,null,null,null,null,null,null,null,null,null,null,null,null,null,null,null,null,null,null,null,null,null,null,null,null,null,null,null,null,null,null,null,null,null,null,null,null,null,null,null,null,null,null,null,null,null,null,null,null,null,null,null,null,null,null,null,null,null,null,null,null,null,null,null,null,null,null,"(Maschinist + Schlepper)",null,null,null,null,null,null,null,null,null,null,null,null,null,null,null,null,null,null,null,null,null,null,null,null,null,null,null,null,null,null,null,null,null,null,null,null,null,null,null,null,null,null,null,null,null,null,null,null,null,null,null,"(Maschinist + Forwarder)",null,null,null,null,null,null,null,null,null,null,null,null,null,null,null,null,null,null,null,null,null,null,null,null,null,null,null,null,null,null,null,null,null,null,null,null,null,null,null,null,null,null,null,null,null,null,null,null,null,null,null,"(Maschinist + Seilkran)"]
[]
[]
[]
[]
[]
[]
[]
[]
[]
[]
[]
[]
[]
[]
[]
[]
[]
[]
[]
[]
[]
[]
[]
[]
[]
[]
[]
[]
[]
[]
[]
[]
[]
[]
[]
[]
[]
[]
[]
[]
[]
[]
[]
[]
[]
[]
[]
[]
[]
[]
[]
[]
[]
[]
[]
[]
[]
[]
[]
[]
[]
[]
[]
[]
[]
[]
[]
[]
[]
[]
[]
[]
[]
[]
[]
[]
[]
[]
[]
[]
[]
[]
[]
[]
[]
[]
[]
[]
[]
[]
[]
[]
[]
[]
[]
[]
[]
[]
[]
[]
[]
[]
[]
[]
[]
[]
[]
[]
[]
[]
[]
[]
[]
[]
[]
[]
[]
[]
[]
[]
[]
[]
[]
[]
[]
[]
[]
[]
[]
[]
[]
[]
[]
[]
[]
[]
[]
[]
[]
[]
[]
[]
[]
[]
[]
[]
[]
[]
[]
[]
[]
[null,null,null,null,null,null,null,null,null,null,null,null,null,null,null,null,null,null,null,null,null,null,null,null,null,null,null,null,null,null,null,null,null,null,null,null,null,null,null,null,null,null,null,null,null,null,null,null,null,null,null,null,null,null,null,null,null,null,null,null,null,null,null,null,null,null,null,"Zusätzliche Kosten für Transport des Holzes ausserhalb S3",null,null,null,null,null,null,null,null,null,null,"HV 1",null,null,null,null,null,null,null,null,null,null,null,null,null,null,null,null,null,null,null,null,null,null,null,null,null,null,null,null,null,null,null,null,null,null,null,null,null,null,null,null,"Zusätzliche Kosten für Transport des Holzes ausserhalb S3",null,null,null,null,null,null,null,null,null,null,"HV 2"]
[null,null,null,null,null,null,null,null,null,null,null,null,null,null,null,null,null,null,null,null,null,null,null,null,null,null,null,null,null,null,null,null,null,null,null,null,null,null,null,null,null,null,null,null,null,null,null,null,null,null,null,null,null,null,null,null,null,null,null,null,null,null,null,null,null,null,null,"Vorschrift: Keine chemische Behandlung von gelagertem Holz / keine Lagerung von behandeltem Holz (VS 3)",null,null,null,null,null,null,null,null,null,null,null,null,null,null,null,null,null,null,null,null,null,null,null,null,null,null,null,null,null,null,null,null,null,null,null,null,null,null,null,null,null,null,null,null,null,null,null,null,null,null,null,"Vorschrift: Keine chemische Behandlung von gelagertem Holz / keine Lagerung von behandeltem Holz (VS 3)"]
[]
[]
[]
[]
[]
[null,null,null,null,null,null,null,null,null,null,null,null,null,null,null,null,null,null,null,null,null,null,null,null,null,null,null,null,null,null,null,null,null,null,null,null,null,null,null,null,null,null,null,null,null,null,null,null,null,null,null,null,null,null,null,null,null,null,null,null,null,null,null,null,null,null,null,null,null,null,null,null,null,"Abk.",null,null,null,null,null,null,null,null,null,null,null,null,null,null,null,null,null,null,null,null,null,null,null,null,null,null,null,null,null,null,null,null,null,null,null,null,null,null,null,null,null,null,null,null,null,null,null,null,null,null,null,"Abk."]
[null,null,null,null,null,null,null,null,null,null,null,null,null,null,null,null,null,null,null,null,null,null,null,null,null,null,null,null,null,null,null,null,null,null,null,null,null,null,null,null,null,null,null,null,null,null,null,null,null,null,null,null,null,null,null,null,null,null,null,null,null,null,null,null,null,null,null,"Zusätzliche Rückedistanz auf der Strasse bis ausserhalb S3",null,null,null,null,null,"D",null,0.6,"km",null,null,null,null,null,null,null,null,null,null,null,null,null,null,null,null,null,null,null,null,null,null,null,null,null,null,null,null,null,null,null,null,null,null,null,null,null,null,null,null,null,null,"Zusätzliche Rückedistanz auf der Strasse bis ausserhalb S3",null,null,null,null,null,"D",null,0.6,"km"]
[null,null,null,null,null,null,null,null,null,null,null,null,null,null,null,null,null,null,null,null,null,null,null,null,null,null,null,null,null,null,null,null,null,null,null,null,null,null,null,null,null,null,null,null,null,null,null,null,null,null,null,null,null,null,null,null,null,null,null,null,null,null,null,null,null,null,null,"Durchschnittliche Fahrzeuggeschwindigkeit",null,null,null,null,null,"VFahrz",null,10,"km/h",null,null,null,null,null,null,null,null,null,null,null,null,null,null,null,null,null,null,null,null,null,null,null,null,null,null,null,null,null,null,null,null,null,null,null,null,null,null,null,null,null,null,"Durchschnittliche Fahrzeuggeschwindigkeit",null,null,null,null,null,"VFahrz",null,10,"km/h"]
[null,null,null,null,null,null,null,null,null,null,null,null,null,null,null,null,null,null,null,null,null,null,null,null,null,null,null,null,null,null,null,null,null,null,null,null,null,null,null,null,null,null,null,null,null,null,null,null,null,null,null,null,null,null,null,null,null,null,null,null,null,null,null,null,null,null,null,"Kostenansatz Rücken (Maschinist + Schlepper)",null,null,null,null,null,"KRück",null,{"$f":"BX331","v":190},"Fr./h",null,null,null,null,null,null,null,null,null,null,null,null,null,null,null,null,null,null,null,null,null,null,null,null,null,null,null,null,null,null,null,null,null,null,null,null,null,null,null,null,null,null,"Kostenansatz Rücken (Maschinist + Forwarder)",null,null,null,null,null,"KRück",null,{"$f":"DX331","v":200},"Fr./h"]
[null,null,null,null,null,null,null,null,null,null,null,null,null,null,null,null,null,null,null,null,null,null,null,null,null,null,null,null,null,null,null,null,null,null,null,null,null,null,null,null,null,null,null,null,null,null,null,null,null,null,null,null,null,null,null,null,null,null,null,null,null,null,null,null,null,null,null,"Nutzungsmenge in S2 und S3 pro Hektar und Jahr",null,null,null,null,null,"NS2+S3",null,{"$f":"($AR$170+$AR$171)/($AR$168+$AR$169)","v":11.295081967213115},"m3/(ha a)",null,null,null,null,null,null,null,null,null,null,null,null,null,null,null,null,null,null,null,null,null,null,null,null,null,null,null,null,null,null,null,null,null,null,null,null,null,null,null,null,null,null,"Nutzungsmenge in S2 und S3 pro Hektar und Jahr",null,null,null,null,null,"NS2+S3",null,{"$f":"($AR$170+$AR$171)/($AR$168+$AR$169)","v":11.295081967213115},"m3/(ha a)"]
[null,null,null,null,null,null,null,null,null,null,null,null,null,null,null,null,null,null,null,null,null,null,null,null,null,null,null,null,null,null,null,null,null,null,null,null,null,null,null,null,null,null,null,null,null,null,null,null,null,null,null,null,null,null,null,null,null,null,null,null,null,null,null,null,null,null,null,"Lastvolumen Forstspezialschlepper",null,null,null,null,null,"LVol",null,4,"m3 ",null,null,null,null,null,null,null,null,null,null,null,null,null,null,null,null,null,null,null,null,null,null,null,null,null,null,null,null,null,null,null,null,null,null,null,null,null,null,null,null,null,null,"Lastvolumen Forwarder",null,null,null,null,null,"LVol",null,18,"m3 "]
[]
[null,null,null,null,null,null,null,null,null,null,null,null,null,null,null,null,null,null,null,null,null,null,null,null,null,null,null,null,null,null,null,null,null,null,null,null,null,null,null,null,null,null,null,null,null,null,null,null,null,null,null,null,null,null,null,null,null,null,null,null,null,null,null,null,null,null,null,"Zusätzliche Kosten für Transport des Holzes ausserhalb S3",null,null,null,null,null,"ZKTrans",null,{"$f":"(2*BX492*BX494*BX495)/(BX496*BX493)","v":64.381967213114748},"Fr./(ha a)",null,null,null,null,null,null,null,null,null,null,null,null,null,null,null,null,null,null,null,null,null,null,null,null,null,null,null,null,null,null,null,null,null,null,null,null,null,null,null,null,null,null,"Zusätzliche Kosten für Transport des Holzes ausserhalb S3",null,null,null,null,null,"ZKTrans",null,{"$f":"(2*DX492*DX494*DX495)/(DX493*DX496)","v":15.060109289617486},"Fr./(ha a)"]
[]
[]
[]
[]
[]
[]
[]
[]
[]
[]
[]
[]
[]
[]
[]
[]
[]
[]
[]
[]
[]
[]
[]
[]
[]
[]
[]
[]
[]
[]
[]
[]
[]
[]
[]
[]
[]
[]
[]
[]
[]
[]
[]
[]
[]
[]
[]
[]
[]
[]
[]
[]
[]
[]
[]
[]
[]
[]
[]
[]
[]
[]
[]
[]
[]
[]
[]
[]
[]
[]
[]
[]
[]
[]
[]
[]
[]
[]
[]
[]
[]
[]
[]
[]
[]
[]
[]
[]
[]
[]
[]
[]
[]
[]
[]
[]
[]
[]
[]
[]
[]
[]
[]
[]
[]
[]
[]
[]
[]
[]
[]
[]
[]
[]
[]
[]
[]
[]
[]
[]
[]
[]
[]
[]
[]
[]
[]
[]
[]
[]
[]
[]
[]
[]
[]
[]
[]
[]
[]
[]
[]
[]
[]
[]
[]
[null,null,null,null,null,null,null,null,null,null,null,null,null,null,null,null,null,null,null,null,null,null,null,null,null,null,null,null,null,null,null,null,null,null,null,null,null,null,null,null,null,null,null,null,null,null,null,null,null,null,null,null,null,null,null,null,null,null,null,null,null,null,null,null,null,null,null,"Zusätzliche Kosten für Auffangwannen",null,null,null,null,null,null,null,null,null,null,"HV 1",null,null,null,null,null,null,null,null,null,null,null,null,null,null,null,null,null,null,null,null,null,null,null,null,null,null,null,null,null,null,null,null,null,null,null,null,null,null,null,null,null,null,null,null,null,null,null,null,null,null,null,null,null,null,null,null,null,null,null,null,null,null,null,null,null,null,null,null,null,null,null,null,null,null,null,null,null,null,null,null,null,null,null,null,null,null,null,null,null,null,null,null,"Zusätzliche Kosten für Auffangwannen",null,null,null,null,null,null,null,null,null,null,"HV 3"]
[null,null,null,null,null,null,null,null,null,null,null,null,null,null,null,null,null,null,null,null,null,null,null,null,null,null,null,null,null,null,null,null,null,null,null,null,null,null,null,null,null,null,null,null,null,null,null,null,null,null,null,null,null,null,null,null,null,null,null,null,null,null,null,null,null,null,null,"Empfehlung: Keine ungeschützte Lagerung und Umfüllung von Betriebsstoffen (ES 3)",null,null,null,null,null,null,null,null,null,null,null,null,null,null,null,null,null,null,null,null,null,null,null,null,null,null,null,null,null,null,null,null,null,null,null,null,null,null,null,null,null,null,null,null,null,null,null,null,null,null,null,null,null,null,null,null,null,null,null,null,null,null,null,null,null,null,null,null,null,null,null,null,null,null,null,null,null,null,null,null,null,null,null,null,null,null,null,null,null,null,null,null,null,null,null,null,null,null,null,null,null,null,null,"Empfehlung: Keine ungeschützte Lagerung und Umfüllung von Betriebsstoffen (ES 3)"]
[]
[]
[null,null,null,null,null,null,null,null,null,null,null,null,null,null,null,null,null,null,null,null,null,null,null,null,null,null,null,null,null,null,null,null,null,null,null,null,null,null,null,null,null,null,null,null,null,null,null,null,null,null,null,null,null,null,null,null,null,null,null,null,null,null,null,null,null,null,null,null,null,null,"(Ergebnis wird aufgerundet)",null,null,null,null,null,null,null,null,null,null,null,null,null,null,null,null,null,null,null,null,null,null,null,null,null,null,null,null,null,null,null,null,null,null,null,null,null,null,null,null,null,null,null,null,null,null,null,null,null,null,null,null,null,null,null,null,null,null,null,null,null,null,null,null,null,null,null,null,null,null,null,null,null,null,null,null,null,null,null,null,null,null,null,null,null,null,null,null,null,null,null,null,null,null,null,null,null,null,null,null,null,null,null,null,"(Ergebnis wird aufgerundet)"]
[]
[]
[]
[]
[]
[null,null,null,null,null,null,null,null,null,null,null,null,null,null,null,null,null,null,null,null,null,null,null,null,null,null,null,null,null,null,null,null,null,null,null,null,null,null,null,null,null,null,null,null,null,null,null,null,null,null,null,null,null,null,null,null,null,null,null,null,null,null,null,null,null,null,null,null,null,null,null,null,null,"Abk.",null,null,null,null,null,null,null,null,null,null,null,null,null,null,null,null,null,null,null,null,null,null,null,null,null,null,null,null,null,null,null,null,null,null,null,null,null,null,null,null,null,null,null,null,null,null,null,null,null,null,null,null,null,null,null,null,null,null,null,null,null,null,null,null,null,null,null,null,null,null,null,null,null,null,null,null,null,null,null,null,null,null,null,null,null,null,null,null,null,null,null,null,null,null,null,null,null,null,null,null,null,null,null,"Abk."]
[null,null,null,null,null,null,null,null,null,null,null,null,null,null,null,null,null,null,null,null,null,null,null,null,null,null,null,null,null,null,null,null,null,null,null,null,null,null,null,null,null,null,null,null,null,null,null,null,null,null,null,null,null,null,null,null,null,null,null,null,null,null,null,null,null,null,null,"Anzahl benötigter Wannen",null,null,null,null,null,"AWanne","(genau)",{"$f":"($AR168+$AR169)/200","v":0.30499999999999999},"-",null,null,null,null,null,null,null,null,null,null,null,null,null,null,null,null,null,null,null,null,null,null,null,null,null,null,null,null,null,null,null,null,null,null,null,null,null,null,null,null,null,null,null,null,null,null,null,null,null,null,null,null,null,null,null,null,null,null,null,null,null,null,null,null,null,null,null,null,null,null,null,null,null,null,null,null,null,null,null,null,null,null,null,null,null,null,null,null,null,null,null,null,null,null,"Anzahl benötigter Wannen",null,null,null,null,null,"AWanne","(genau)",{"$f":"($AR168+$AR169)/200","v":0.30499999999999999}]
[null,null,null,null,null,null,null,null,null,null,null,null,null,null,null,null,null,null,null,null,null,null,null,null,null,null,null,null,null,null,null,null,null,null,null,null,null,null,null,null,null,null,null,null,null,null,null,null,null,null,null,null,null,null,null,null,null,null,null,null,null,null,null,null,null,null,null,null,null,null,null,null,null,null,"(gerundet)",{"$f":"ROUNDUP(BX655,0)","v":1},"-",null,null,null,null,null,null,null,null,null,null,null,null,null,null,null,null,null,null,null,null,null,null,null,null,null,null,null,null,null,null,null,null,null,null,null,null,null,null,null,null,null,null,null,null,null,null,null,null,null,null,null,null,null,null,null,null,null,null,null,null,null,null,null,null,null,null,null,null,null,null,null,null,null,null,null,null,null,null,null,null,null,null,null,null,null,null,null,null,null,null,null,null,null,null,null,null,null,null,null,null,null,"(gerundet)",{"$f":"ROUNDUP(FX655,0)","v":1}]
[null,null,null,null,null,null,null,null,null,null,null,null,null,null,null,null,null,null,null,null,null,null,null,null,null,null,null,null,null,null,null,null,null,null,null,null,null,null,null,null,null,null,null,null,null,null,null,null,null,null,null,null,null,null,null,null,null,null,null,null,null,null,null,null,null,null,null,"Anschaffungskosten einer Auffangwanne ",null,null,null,null,null,"KWanne",null,42,"Fr.",null,null,null,null,null,null,null,null,null,null,null,null,null,null,null,null,null,null,null,null,null,null,null,null,null,null,null,null,null,null,null,null,null,null,null,null,null,null,null,null,null,null,null,null,null,null,null,null,null,null,null,null,null,null,null,null,null,null,null,null,null,null,null,null,null,null,null,null,null,null,null,null,null,null,null,null,null,null,null,null,null,null,null,null,null,null,null,null,null,null,null,null,null,null,"Anschaffungskosten einer Auffangwanne ",null,null,null,null,null,"KWanne",null,42,"Fr."]
[null,null,null,null,null,null,null,null,null,null,null,null,null,null,null,null,null,null,null,null,null,null,null,null,null,null,null,null,null,null,null,null,null,null,null,null,null,null,null,null,null,null,null,null,null,null,null,null,null,null,null,null,null,null,null,null,null,null,null,null,null,null,null,null,null,null,null,"Lebendsdauer der Auffangwanne",null,null,null,null,null,"Ldauer",null,5,"a",null,null,null,null,null,null,null,null,null,null,null,null,null,null,null,null,null,null,null,null,null,null,null,null,null,null,null,null,null,null,null,null,null,null,null,null,null,null,null,null,null,null,null,null,null,null,null,null,null,null,null,null,null,null,null,null,null,null,null,null,null,null,null,null,null,null,null,null,null,null,null,null,null,null,null,null,null,null,null,null,null,null,null,null,null,null,null,null,null,null,null,null,null,null,"Lebendsdauer der Auffangwanne",null,null,null,null,null,"Ldauer",null,5,"a"]
[null,null,null,null,null,null,null,null,null,null,null,null,null,null,null,null,null,null,null,null,null,null,null,null,null,null,null,null,null,null,null,null,null,null,null,null,null,null,null,null,null,null,null,null,null,null,null,null,null,null,null,null,null,null,null,null,null,null,null,null,null,null,null,null,null,null,null,"Fläche S2 und S3",null,null,null,null,null,"AS2+S3",null,{"$f":"$AR$168+$AR$169","v":61},"ha",null,null,null,null,null,null,null,null,null,null,null,null,null,null,null,null,null,null,null,null,null,null,null,null,null,null,null,null,null,null,null,null,null,null,null,null,null,null,null,null,null,null,null,null,null,null,null,null,null,null,null,null,null,null,null,null,null,null,null,null,null,null,null,null,null,null,null,null,null,null,null,null,null,null,null,null,null,null,null,null,null,null,null,null,null,null,null,null,null,null,null,null,null,null,"Fläche S2 und S3",null,null,null,null,null,"AS2+S3",null,{"$f":"$AR$168+$AR$169","v":61},"ha"]
[]
[null,null,null,null,null,null,null,null,null,null,null,null,null,null,null,null,null,null,null,null,null,null,null,null,null,null,null,null,null,null,null,null,null,null,null,null,null,null,null,null,null,null,null,null,null,null,null,null,null,null,null,null,null,null,null,null,null,null,null,null,null,null,null,null,null,null,null,"Zusätzliche Kosten für Auffangwannen",null,null,null,null,null,"ZKWanne",null,{"$f":"(BX656*BX657)/(BX658*BX659)","v":0.13770491803278689},"Fr./(ha a)",null,null,null,null,null,null,null,null,null,null,null,null,null,null,null,null,null,null,null,null,null,null,null,null,null,null,null,null,null,null,null,null,null,null,null,null,null,null,null,null,null,null,null,null,null,null,null,null,null,null,null,null,null,null,null,null,null,null,null,null,null,null,null,null,null,null,null,null,null,null,null,null,null,null,null,null,null,null,null,null,null,null,null,null,null,null,null,null,null,null,null,null,null,null,"Zusätzliche Kosten für Auffangwannen",null,null,null,null,null,"ZKWanne",null,{"$f":"(FX656*FX657)/(FX658*FX659)","v":0.13770491803278689},"Fr./(ha a)"]
[]
[]
[]
[]
[]
[]
[]
[]
[]
[]
[]
[]
[]
[]
[]
[]
[]
[]
[]
[]
[]
[]
[]
[]
[]
[]
[]
[]
[]
[]
[]
[]
[]
[]
[]
[]
[]
[]
[]
[]
[]
[]
[]
[]
[]
[]
[]
[]
[]
[]
[]
[]
[]
[]
[]
[]
[]
[]
[]
[]
[]
[]
[]
[]
[]
[]
[]
[]
[]
[]
[]
[]
[]
[]
[]
[]
[]
[]
[]
[]
[]
[]
[]
[]
[]
[]
[]
[]
[]
[]
[]
[]
[]
[]
[]
[]
[]
[]
[]
[]
[]
[]
[]
[]
[]
[]
[]
[]
[]
[]
[]
[]
[]
[]
[]
[]
[]
[]
[]
[]
[]
[]
[]
[]
[]
[]
[]
[]
[]
[]
[]
[]
[]
[]
[]
[]
[]
[]
[]
[]
[]
[]
[null,null,null,null,null,null,null,null,null,null,null,null,null,null,null,null,null,null,null,null,null,null,null,null,null,null,null,null,null,null,null,null,null,null,null,null,null,null,null,null,null,null,null,null,null,null,null,null,null,null,null,null,null,null,null,null,null,null,null,null,null,null,null,null,null,null,null,null,null,null,null,null,null,null,null,null,null,null,null,null,null,null,null,null,null,null,null,null,null,null,null,null,null,null,null,null,null,null,null,null,null,null,null,null,null,null,null,null,null,null,null,null,null,null,null,null,null,null,null,"Zusätzliche Kosten für Umsetzen auf Ausweichfläche",null,null,null,null,null,null,null,null,null,null,"HV 2"]
[null,null,null,null,null,null,null,null,null,null,null,null,null,null,null,null,null,null,null,null,null,null,null,null,null,null,null,null,null,null,null,null,null,null,null,null,null,null,null,null,null,null,null,null,null,null,null,null,null,null,null,null,null,null,null,null,null,null,null,null,null,null,null,null,null,null,null,null,null,null,null,null,null,null,null,null,null,null,null,null,null,null,null,null,null,null,null,null,null,null,null,null,null,null,null,null,null,null,null,null,null,null,null,null,null,null,null,null,null,null,null,null,null,null,null,null,null,null,null,"Empfehlung: Bodenschonende Befahrung (ES 3)"]
[]
[]
[]
[]
[]
[null,null,null,null,null,null,null,null,null,null,null,null,null,null,null,null,null,null,null,null,null,null,null,null,null,null,null,null,null,null,null,null,null,null,null,null,null,null,null,null,null,null,null,null,null,null,null,null,null,null,null,null,null,null,null,null,null,null,null,null,null,null,null,null,null,null,null,null,null,null,null,null,null,null,null,null,null,null,null,null,null,null,null,null,null,null,null,null,null,null,null,null,null,null,null,null,null,null,null,null,null,null,null,null,null,null,null,null,null,null,null,null,null,null,null,null,null,null,null,"Ergebnis:"]
[null,null,null,null,null,null,null,null,null,null,null,null,null,null,null,null,null,null,null,null,null,null,null,null,null,null,null,null,null,null,null,null,null,null,null,null,null,null,null,null,null,null,null,null,null,null,null,null,null,null,null,null,null,null,null,null,null,null,null,null,null,null,null,null,null,null,null,null,null,null,null,null,null,null,null,null,null,null,null,null,null,null,null,null,null,null,null,null,null,null,null,null,null,null,null,null,null,null,null,null,null,null,null,null,null,null,null,null,null,null,null,null,null,null,null,null,null,null,null,"falls  pt/a ","≤ 3","→","ist  pums",0]
[null,null,null,null,null,null,null,null,null,null,null,null,null,null,null,null,null,null,null,null,null,null,null,null,null,null,null,null,null,null,null,null,null,null,null,null,null,null,null,null,null,null,null,null,null,null,null,null,null,null,null,null,null,null,null,null,null,null,null,null,null,null,null,null,null,null,null,null,null,null,null,null,null,null,null,null,null,null,null,null,null,null,null,null,null,null,null,null,null,null,null,null,null,null,null,null,null,null,null,null,null,null,null,null,null,null,null,null,null,null,null,null,null,null,null,null,null,null,null,"       \"","> 3 - 5  ","→","       \"",0.5]
[null,null,null,null,null,null,null,null,null,null,null,null,null,null,null,null,null,null,null,null,null,null,null,null,null,null,null,null,null,null,null,null,null,null,null,null,null,null,null,null,null,null,null,null,null,null,null,null,null,null,null,null,null,null,null,null,null,null,null,null,null,null,null,null,null,null,null,null,null,null,null,null,null,null,null,null,null,null,null,null,null,null,null,null,null,null,null,null,null,null,null,null,null,null,null,null,null,null,null,null,null,null,null,null,null,null,null,null,null,null,null,null,null,null,null,null,null,null,null,"       \"","> 5 - 10","→","       \"",0.75]
[null,null,null,null,null,null,null,null,null,null,null,null,null,null,null,null,null,null,null,null,null,null,null,null,null,null,null,null,null,null,null,null,null,null,null,null,null,null,null,null,null,null,null,null,null,null,null,null,null,null,null,null,null,null,null,null,null,null,null,null,null,null,null,null,null,null,null,null,null,null,null,null,null,null,null,null,null,null,null,null,null,null,null,null,null,null,null,null,null,null,null,null,null,null,null,null,null,null,null,null,null,null,null,null,null,null,null,null,null,null,null,null,null,null,null,null,null,null,null,"       \"","> 10 - 20","→","       \"",1]
[null,null,null,null,null,null,null,null,null,null,null,null,null,null,null,null,null,null,null,null,null,null,null,null,null,null,null,null,null,null,null,null,null,null,null,null,null,null,null,null,null,null,null,null,null,null,null,null,null,null,null,null,null,null,null,null,null,null,null,null,null,null,null,null,null,null,null,null,null,null,null,null,null,null,null,null,null,null,null,null,null,null,null,null,null,null,null,null,null,null,null,null,null,null,null,null,null,null,null,null,null,null,null,null,null,null,null,null,null,null,null,null,null,null,null,null,null,null,null,"       \"","> 20","→","       \""]
[]
[null,null,null,null,null,null,null,null,null,null,null,null,null,null,null,null,null,null,null,null,null,null,null,null,null,null,null,null,null,null,null,null,null,null,null,null,null,null,null,null,null,null,null,null,null,null,null,null,null,null,null,null,null,null,null,null,null,null,null,null,null,null,null,null,null,null,null,null,null,null,null,null,null,null,null,null,null,null,null,null,null,null,null,null,null,null,null,null,null,null,null,null,null,null,null,null,null,null,null,null,null,null,null,null,null,null,null,null,null,null,null,null,null,null,null,null,null,null,null,null,null,null,null,null,null,"Abk."]
[null,null,null,null,null,null,null,null,null,null,null,null,null,null,null,null,null,null,null,null,null,null,null,null,null,null,null,null,null,null,null,null,null,null,null,null,null,null,null,null,null,null,null,null,null,null,null,null,null,null,null,null,null,null,null,null,null,null,null,null,null,null,null,null,null,null,null,null,null,null,null,null,null,null,null,null,null,null,null,null,null,null,null,null,null,null,null,null,null,null,null,null,null,null,null,null,null,null,null,null,null,null,null,null,null,null,null,null,null,null,null,null,null,null,null,null,null,null,null,"Jährliche Nutzungsmenge in S2 und S3:",null,null,null,null,null,"NS2+S3",null,{"$f":"$AR$170+$AR$171","v":689},"m3/a"]
[null,null,null,null,null,null,null,null,null,null,null,null,null,null,null,null,null,null,null,null,null,null,null,null,null,null,null,null,null,null,null,null,null,null,null,null,null,null,null,null,null,null,null,null,null,null,null,null,null,null,null,null,null,null,null,null,null,null,null,null,null,null,null,null,null,null,null,null,null,null,null,null,null,null,null,null,null,null,null,null,null,null,null,null,null,null,null,null,null,null,null,null,null,null,null,null,null,null,null,null,null,null,null,null,null,null,null,null,null,null,null,null,null,null,null,null,null,null,null,"Tägliche Maschinenleistung (Forwarder):",null,null,null,null,null,"Ltag ",null,100,"m3/tag "]
[null,null,null,null,null,null,null,null,null,null,null,null,null,null,null,null,null,null,null,null,null,null,null,null,null,null,null,null,null,null,null,null,null,null,null,null,null,null,null,null,null,null,null,null,null,null,null,null,null,null,null,null,null,null,null,null,null,null,null,null,null,null,null,null,null,null,null,null,null,null,null,null,null,null,null,null,null,null,null,null,null,null,null,null,null,null,null,null,null,null,null,null,null,null,null,null,null,null,null,null,null,null,null,null,null,null,null,null,null,null,null,null,null,null,null,null,null,null,null,"Hiebstage pro Jahr",null,null,null,null,null,"pt/a",null,{"$f":"DX819/DX820","v":6.89},"Tage/Jahr"]
[]
[]
[]
[]
[]
[null,null,null,null,null,null,null,null,null,null,null,null,null,null,null,null,null,null,null,null,null,null,null,null,null,null,null,null,null,null,null,null,null,null,null,null,null,null,null,null,null,null,null,null,null,null,null,null,null,null,null,null,null,null,null,null,null,null,null,null,null,null,null,null,null,null,null,null,null,null,null,null,null,null,null,null,null,null,null,null,null,null,null,null,null,null,null,null,null,null,null,null,null,null,null,null,null,null,null,null,null,null,null,null,null,null,null,null,null,null,null,null,null,null,null,null,null,null,null,null,null,null,null,null,null,"Abk."]
[null,null,null,null,null,null,null,null,null,null,null,null,null,null,null,null,null,null,null,null,null,null,null,null,null,null,null,null,null,null,null,null,null,null,null,null,null,null,null,null,null,null,null,null,null,null,null,null,null,null,null,null,null,null,null,null,null,null,null,null,null,null,null,null,null,null,null,null,null,null,null,null,null,null,null,null,null,null,null,null,null,null,null,null,null,null,null,null,null,null,null,null,null,null,null,null,null,null,null,null,null,null,null,null,null,null,null,null,null,null,null,null,null,null,null,null,null,null,null,"Wahrscheinlichkeit des Umsetzens pro Jahr",null,null,null,null,null,"pums",null,{"$f":"IF(DX819/DX820<=3,0,IF(DX819/DX820<=5,0.5,IF(DX819/DX820<=10,0.75,IF(DX819/DX820<=20,1,IF(DX819/DX820>20,(DX819/DX820)/20)))))","v":0.75},"/a"]
[null,null,null,null,null,null,null,null,null,null,null,null,null,null,null,null,null,null,null,null,null,null,null,null,null,null,null,null,null,null,null,null,null,null,null,null,null,null,null,null,null,null,null,null,null,null,null,null,null,null,null,null,null,null,null,null,null,null,null,null,null,null,null,null,null,null,null,null,null,null,null,null,null,null,null,null,null,null,null,null,null,null,null,null,null,null,null,null,null,null,null,null,null,null,null,null,null,null,null,null,null,null,null,null,null,null,null,null,null,null,null,null,null,null,null,null,null,null,null,"Kostenansatz des Tieflader + Fahrer",null,null,null,null,null,"KTief",null,150,"Fr./h"]
[null,null,null,null,null,null,null,null,null,null,null,null,null,null,null,null,null,null,null,null,null,null,null,null,null,null,null,null,null,null,null,null,null,null,null,null,null,null,null,null,null,null,null,null,null,null,null,null,null,null,null,null,null,null,null,null,null,null,null,null,null,null,null,null,null,null,null,null,null,null,null,null,null,null,null,null,null,null,null,null,null,null,null,null,null,null,null,null,null,null,null,null,null,null,null,null,null,null,null,null,null,null,null,null,null,null,null,null,null,null,null,null,null,null,null,null,null,null,null,"Kostenansatz Rücken (Maschinist + Forwarder)",null,null,null,null,null,"KRück",null,{"$f":"DX331","v":200},"Fr./h"]
[null,null,null,null,null,null,null,null,null,null,null,null,null,null,null,null,null,null,null,null,null,null,null,null,null,null,null,null,null,null,null,null,null,null,null,null,null,null,null,null,null,null,null,null,null,null,null,null,null,null,null,null,null,null,null,null,null,null,null,null,null,null,null,null,null,null,null,null,null,null,null,null,null,null,null,null,null,null,null,null,null,null,null,null,null,null,null,null,null,null,null,null,null,null,null,null,null,null,null,null,null,null,null,null,null,null,null,null,null,null,null,null,null,null,null,null,null,null,null,"Durchschnittliche Fahrzeuggeschwindigkeit des Tieflader",null,null,null,null,null,"VFahrz",null,50,"km/h"]
[null,null,null,null,null,null,null,null,null,null,null,null,null,null,null,null,null,null,null,null,null,null,null,null,null,null,null,null,null,null,null,null,null,null,null,null,null,null,null,null,null,null,null,null,null,null,null,null,null,null,null,null,null,null,null,null,null,null,null,null,null,null,null,null,null,null,null,null,null,null,null,null,null,null,null,null,null,null,null,null,null,null,null,null,null,null,null,null,null,null,null,null,null,null,null,null,null,null,null,null,null,null,null,null,null,null,null,null,null,null,null,null,null,null,null,null,null,null,null,"Durchschnittliche Umsetzdistanz",null,null,null,null,null,"Dums",null,20,"km "]
[null,null,null,null,null,null,null,null,null,null,null,null,null,null,null,null,null,null,null,null,null,null,null,null,null,null,null,null,null,null,null,null,null,null,null,null,null,null,null,null,null,null,null,null,null,null,null,null,null,null,null,null,null,null,null,null,null,null,null,null,null,null,null,null,null,null,null,null,null,null,null,null,null,null,null,null,null,null,null,null,null,null,null,null,null,null,null,null,null,null,null,null,null,null,null,null,null,null,null,null,null,null,null,null,null,null,null,null,null,null,null,null,null,null,null,null,null,null,null,"Fläche S2 und S3",null,null,null,null,null,"AS2+S3",null,{"$f":"$AR$168+$AR$169","v":61},"ha"]
[]
[null,null,null,null,null,null,null,null,null,null,null,null,null,null,null,null,null,null,null,null,null,null,null,null,null,null,null,null,null,null,null,null,null,null,null,null,null,null,null,null,null,null,null,null,null,null,null,null,null,null,null,null,null,null,null,null,null,null,null,null,null,null,null,null,null,null,null,null,null,null,null,null,null,null,null,null,null,null,null,null,null,null,null,null,null,null,null,null,null,null,null,null,null,null,null,null,null,null,null,null,null,null,null,null,null,null,null,null,null,null,null,null,null,null,null,null,null,null,null,"Zusätzliche Kosten für Umsetzen auf Ausweichfläche",null,null,null,null,null,"ZKUms",null,{"$f":"((DX829+DX830)*2*DX832*DX828)/(DX831*DX833)","v":3.442622950819672},"Fr./(ha a)"]
[]
[]
[]
[]
[]
[]
[]
[]
[]
[]
[]
[]
[]
[]
[]
[]
[]
[]
[]
[]
[]
[]
[]
[]
[]
[]
[]
[]
[]
[]
[]
[]
[]
[]
[]
[]
[]
[]
[]
[]
[]
[]
[]
[]
[]
[]
[]
[]
[]
[]
[]
[]
[]
[]
[]
[]
[]
[]
[]
[]
[]
[]
[]
[]
[]
[]
[]
[]
[]
[]
[]
[]
[]
[]
[]
[]
[]
[]
[]
[]
[]
[]
[]
[]
[]
[]
[]
[]
[]
[]
[]
[]
[]
[]
[]
[]
[]
[]
[]
[]
[]
[]
[]
[]
[]
[]
[]
[]
[]
[]
[]
[]
[]
[]
[]
[]
[]
[]
[]
[]
[]
[]
[]
[]
[]
[]
[]
[]
[]
[null,null,null,null,null,null,null,null,null,null,null,null,null,null,null,null,null,null,null,null,null,null,null,null,null,null,null,null,null,null,null,null,null,null,null,null,null,null,null,null,null,null,null,null,null,null,null,null,null,null,null,null,null,null,null,null,null,null,null,null,null,null,null,null,null,null,null,"Zusätzliche Kosten für umweltverträgliche Treib- und Schmierstoffe",null,null,null,null,null,null,null,null,null,null,"HV 1",null,null,null,null,null,null,null,null,null,null,null,null,null,null,null,null,null,null,null,null,null,null,null,null,null,null,null,null,null,null,null,null,null,null,null,null,null,null,null,null,"Zusätzliche Kosten für umweltverträgliche Treib- und Schmierstoffe",null,null,null,null,null,null,null,null,null,null,"HV 2",null,null,null,null,null,null,null,null,null,null,null,null,null,null,null,null,null,null,null,null,null,null,null,null,null,null,null,null,null,null,null,null,null,null,null,null,null,null,null,null,"Zusätzliche Kosten für umweltverträgliche Treib- und Schmierstoffe",null,null,null,null,null,null,null,null,null,null,"HV 3"]
[null,null,null,null,null,null,null,null,null,null,null,null,null,null,null,null,null,null,null,null,null,null,null,null,null,null,null,null,null,null,null,null,null,null,null,null,null,null,null,null,null,null,null,null,null,null,null,null,null,null,null,null,null,null,null,null,null,null,null,null,null,null,null,null,null,null,null,"Empfehlung: Verwendung umweltverträglicher Treib- und Schmierstoffe (ES 3)",null,null,null,null,null,null,null,null,null,null,null,null,null,null,null,null,null,null,null,null,null,null,null,null,null,null,null,null,null,null,null,null,null,null,null,null,null,null,null,null,null,null,null,null,null,null,null,null,null,null,null,"Empfehlung: Umweltverträgliche Treib- und Schmierstoffe (ES 3)",null,null,null,null,null,null,null,null,null,null,null,null,null,null,null,null,null,null,null,null,null,null,null,null,null,null,null,null,null,null,null,null,null,null,null,null,null,null,null,null,null,null,null,null,null,null,null,null,null,null,null,"Empfehlung: Umweltverträgliche Treib- und Schmierstoffe (ES 3)"]
[]
[]
[]
[]
[null,null,null,null,null,null,null,null,null,null,null,null,null,null,null,null,null,null,null,null,null,null,null,null,null,null,null,null,null,null,null,null,null,null,null,null,null,null,null,null,null,null,null,null,null,null,null,null,null,null,null,null,null,null,null,null,null,null,null,null,null,null,null,null,null,null,null,null,null,null,null,null,null,"Abk.",null,null,null,null,null,null,null,null,null,null,null,null,null,null,null,null,null,null,null,null,null,null,null,null,null,null,null,null,null,null,null,null,null,null,null,null,null,null,null,null,null,null,null,null,null,null,null,null,null,null,null,"Abk.",null,null,null,null,null,null,null,null,null,null,null,null,null,null,null,null,null,null,null,null,null,null,null,null,null,null,null,null,null,null,null,null,null,null,null,null,null,null,null,null,null,null,null,null,null,null,null,null,null,null,null,"Abk."]
[null,null,null,null,null,null,null,null,null,null,null,null,null,null,null,null,null,null,null,null,null,null,null,null,null,null,null,null,null,null,null,null,null,null,null,null,null,null,null,null,null,null,null,null,null,null,null,null,null,null,null,null,null,null,null,null,null,null,null,null,null,null,null,null,null,null,null,"Nutzungsmenge in S2 und S3 pro Hektar und Jahr",null,null,null,null,null,"NS2+S3",null,{"$f":"($AR$170+$AR$171)/($AR$168+$AR$169)","v":11.295081967213115},"m3/(ha a)",null,null,null,null,null,null,null,null,null,null,null,null,null,null,null,null,null,null,null,null,null,null,null,null,null,null,null,null,null,null,null,null,null,null,null,null,null,null,null,null,null,null,"Nutzungsmenge in S2 und S3 pro Hektar und Jahr",null,null,null,null,null,"NS2+S3",null,{"$f":"($AR$170+$AR$171)/($AR$168+$AR$169)","v":11.295081967213115},"m3/(ha a)",null,null,null,null,null,null,null,null,null,null,null,null,null,null,null,null,null,null,null,null,null,null,null,null,null,null,null,null,null,null,null,null,null,null,null,null,null,null,null,null,null,null,"Nutzungsmenge in S2 und S3 pro Hektar und Jahr",null,null,null,null,null,"NS2+S3",null,{"$f":"($AR$170+$AR$171)/($AR$168+$AR$169)","v":11.295081967213115},"m3/(ha a)"]
[]
[null,null,null,null,null,null,null,null,null,null,null,null,null,null,null,null,null,null,null,null,null,null,null,null,null,null,null,null,null,null,null,null,null,null,null,null,null,null,null,null,null,null,null,null,null,null,null,null,null,null,null,null,null,null,null,null,null,null,null,null,null,null,null,null,null,null,null,"Preisdifferenz zwischen herköm. u. umweltver. Geräteb.",null,null,null,null,null,"Kgb",null,2.2000000000000002,"Fr./l",null,null,null,null,null,null,null,null,null,null,null,null,null,null,null,null,null,null,null,null,null,null,null,null,null,null,null,null,null,null,null,null,null,null,null,null,null,null,null,null,null,null,"Preisdifferenz zwischen herköm. u. umweltver. Hydrauliköl",null,null,null,null,null,"Khö",null,4.7,"Fr./l",null,null,null,null,null,null,null,null,null,null,null,null,null,null,null,null,null,null,null,null,null,null,null,null,null,null,null,null,null,null,null,null,null,null,null,null,null,null,null,null,null,null,"Preisdifferenz zwischen herköm. u. umweltver. Geräteb.",null,null,null,null,null,"Kgb",null,2.2000000000000002,"Fr./l"]
[null,null,null,null,null,null,null,null,null,null,null,null,null,null,null,null,null,null,null,null,null,null,null,null,null,null,null,null,null,null,null,null,null,null,null,null,null,null,null,null,null,null,null,null,null,null,null,null,null,null,null,null,null,null,null,null,null,null,null,null,null,null,null,null,null,null,null,"Verbrauch des Gerätebenzins Motorsäge",null,null,null,null,null,"Vgms",null,0.5,"l/m3",null,null,null,null,null,null,null,null,null,null,null,null,null,null,null,null,null,null,null,null,null,null,null,null,null,null,null,null,null,null,null,null,null,null,null,null,null,null,null,null,null,null,"Verbrauch des Hydrauliköls Harvester",null,null,null,null,null,"Vhhv",null,0.04,"l/m3",null,null,null,null,null,null,null,null,null,null,null,null,null,null,null,null,null,null,null,null,null,null,null,null,null,null,null,null,null,null,null,null,null,null,null,null,null,null,null,null,null,null,"Verbrauch des Gerätebenzins Motorsäge",null,null,null,null,null,"Vgms",null,0.5,"l/m3"]
[null,null,null,null,null,null,null,null,null,null,null,null,null,null,null,null,null,null,null,null,null,null,null,null,null,null,null,null,null,null,null,null,null,null,null,null,null,null,null,null,null,null,null,null,null,null,null,null,null,null,null,null,null,null,null,null,null,null,null,null,null,null,null,null,null,null,null,null,null,null,null,null,null,null,null,null,null,null,null,null,null,null,null,null,null,null,null,null,null,null,null,null,null,null,null,null,null,null,null,null,null,null,null,null,null,null,null,null,null,null,null,null,null,null,null,null,null,null,null,"Verbrauch des Hydrauliköls Forwarder",null,null,null,null,null,"Vhfw",null,0.01,"l/m3"]
[null,null,null,null,null,null,null,null,null,null,null,null,null,null,null,null,null,null,null,null,null,null,null,null,null,null,null,null,null,null,null,null,null,null,null,null,null,null,null,null,null,null,null,null,null,null,null,null,null,null,null,null,null,null,null,null,null,null,null,null,null,null,null,null,null,null,null,"Preisdifferenz zwischen herköm. u. umweltver. Kettenöl",null,null,null,null,null,"Kkö",null,1.8,"Fr./l",null,null,null,null,null,null,null,null,null,null,null,null,null,null,null,null,null,null,null,null,null,null,null,null,null,null,null,null,null,null,null,null,null,null,null,null,null,null,null,null,null,null,null,null,null,null,null,null,null,null,null,null,null,null,null,null,null,null,null,null,null,null,null,null,null,null,null,null,null,null,null,null,null,null,null,null,null,null,null,null,null,null,null,null,null,null,null,null,null,null,null,null,null,null,"Preisdifferenz zwischen herköm. u. umweltver. Kettenöl",null,null,null,null,null,"Kkö",null,1.8,"Fr./l"]
[null,null,null,null,null,null,null,null,null,null,null,null,null,null,null,null,null,null,null,null,null,null,null,null,null,null,null,null,null,null,null,null,null,null,null,null,null,null,null,null,null,null,null,null,null,null,null,null,null,null,null,null,null,null,null,null,null,null,null,null,null,null,null,null,null,null,null,"Verbrauch des Sägekettenöls Motorsäge",null,null,null,null,null,"Vkms",null,0.1,"l/m3",null,null,null,null,null,null,null,null,null,null,null,null,null,null,null,null,null,null,null,null,null,null,null,null,null,null,null,null,null,null,null,null,null,null,null,null,null,null,null,null,null,null,"Preisdifferenz zwischen herköm. u. umweltver. Kettenöl",null,null,null,null,null,"Kkö",null,1.8,"Fr./l",null,null,null,null,null,null,null,null,null,null,null,null,null,null,null,null,null,null,null,null,null,null,null,null,null,null,null,null,null,null,null,null,null,null,null,null,null,null,null,null,null,null,"Verbrauch des Sägekettenöls Motorsäge",null,null,null,null,null,"Vkms",null,0.1,"l/m3"]
[null,null,null,null,null,null,null,null,null,null,null,null,null,null,null,null,null,null,null,null,null,null,null,null,null,null,null,null,null,null,null,null,null,null,null,null,null,null,null,null,null,null,null,null,null,null,null,null,null,null,null,null,null,null,null,null,null,null,null,null,null,null,null,null,null,null,null,null,null,null,null,null,null,null,null,null,null,null,null,null,null,null,null,null,null,null,null,null,null,null,null,null,null,null,null,null,null,null,null,null,null,null,null,null,null,null,null,null,null,null,null,null,null,null,null,null,null,null,null,"Verbrauch des Sägekettenöls Harvester",null,null,null,null,null,"Vkhv",null,0.1,"l/m3"]
[null,null,null,null,null,null,null,null,null,null,null,null,null,null,null,null,null,null,null,null,null,null,null,null,null,null,null,null,null,null,null,null,null,null,null,null,null,null,null,null,null,null,null,null,null,null,null,null,null,null,null,null,null,null,null,null,null,null,null,null,null,null,null,null,null,null,null,"Preisdifferenz zwischen herköm. u. umweltver. Hydrauliköl",null,null,null,null,null,"Khö",null,4.7,"Fr./l",null,null,null,null,null,null,null,null,null,null,null,null,null,null,null,null,null,null,null,null,null,null,null,null,null,null,null,null,null,null,null,null,null,null,null,null,null,null,null,null,null,null,null,null,null,null,null,null,null,null,null,null,null,null,null,null,null,null,null,null,null,null,null,null,null,null,null,null,null,null,null,null,null,null,null,null,null,null,null,null,null,null,null,null,null,null,null,null,null,null,null,null,null,null,"Preisdifferenz zwischen herköm. u. umweltver. Hydrauliköl",null,null,null,null,null,"Khö",null,4.7,"Fr./l"]
[null,null,null,null,null,null,null,null,null,null,null,null,null,null,null,null,null,null,null,null,null,null,null,null,null,null,null,null,null,null,null,null,null,null,null,null,null,null,null,null,null,null,null,null,null,null,null,null,null,null,null,null,null,null,null,null,null,null,null,null,null,null,null,null,null,null,null,"Verbrauch des Hydrauliköls Forstspezialschlepper",null,null,null,null,null,"Vhfs",null,0.03,"l/m3",null,null,null,null,null,null,null,null,null,null,null,null,null,null,null,null,null,null,null,null,null,null,null,null,null,null,null,null,null,null,null,null,null,null,null,null,null,null,null,null,null,null,null,null,null,null,null,null,null,null,null,null,null,null,null,null,null,null,null,null,null,null,null,null,null,null,null,null,null,null,null,null,null,null,null,null,null,null,null,null,null,null,null,null,null,null,null,null,null,null,null,null,null,null,"Verbrauch des Hydrauliköls Seilkarn",null,null,null,null,null,"Vhskran",null,0.03,"l/m3"]
[]
[null,null,null,null,null,null,null,null,null,null,null,null,null,null,null,null,null,null,null,null,null,null,null,null,null,null,null,null,null,null,null,null,null,null,null,null,null,null,null,null,null,null,null,null,null,null,null,null,null,null,null,null,null,null,null,null,null,null,null,null,null,null,null,null,null,null,null,"Zusätzliche Kosten für umweltver. Treib- u. Schmierstoffe",null,null,null,null,null,"ZKTS ",null,{"$f":"BX972*(BX974*BX975+BX977*BX978+BX980*BX981)","v":16.050311475409835},"Fr./(ha a)",null,null,null,null,null,null,null,null,null,null,null,null,null,null,null,null,null,null,null,null,null,null,null,null,null,null,null,null,null,null,null,null,null,null,null,null,null,null,null,null,null,null,"Zusätzliche Kosten für umweltver. Treib- u. Schmierstoffe",null,null,null,null,null,"ZKTS",null,{"$f":"DX972*(DX974*(DX975+DX976)+DX978*DX979)","v":4.6874590163934426},"Fr./(ha a)",null,null,null,null,null,null,null,null,null,null,null,null,null,null,null,null,null,null,null,null,null,null,null,null,null,null,null,null,null,null,null,null,null,null,null,null,null,null,null,null,null,null,"Kosten für umweltverträgliche Treib- und Schmierstoffe",null,null,null,null,null,"ZKTS",null,{"$f":"FX972*(FX974*FX975+FX977*FX978+FX980*FX981)","v":16.050311475409835},"Fr./(ha a)"]
[]
[]
[]
[]
[]
[]
[]
[]
[]
[]
[]
[]
[]
[]
[]
[]
[]
[]
[]
[]
[]
[]
[]
[]
[]
[]
[]
[]
[]
[]
[]
[]
[]
[]
[]
[]
[]
[]
[]
[]
[]
[]
[]
[]
[]
[]
[]
[]
[]
[]
[]
[]
[]
[]
[]
[]
[]
[]
[]
[]
[]
[]
[]
[]
[]
[]
[]
[]
[]
[]
[]
[]
[]
[]
[]
[]
[]
[]
[]
[]
[]
[]
[]
[]
[]
[]
[]
[]
[]
[]
[]
[]
[]
[]
[]
[]
[]
[]
[]
[]
[]
[]
[]
[]
[]
[]
[]
[]
[]
[]
[]
[]
[]
[]
[]
[]
[]
[]
[]
[]
[]
[]
[]
[]
[]
[]
[]
[]
[]
[]
[]
[]
[]
[]
[]
[]
[]
[]
[]
[]
[]
[null,null,null,null,null,null,null,null,null,null,null,null,null,null,null,null,null,null,null,null,null,null,null,null,null,null,null,null,null,null,null,null,null,null,null,null,null,null,null,null,null,null,null,null,null,null,null,null,null,null,null,null,null,null,null,null,null,null,null,null,null,null,null,null,null,null,null,"Differenz im erntekostenfreien Erlöse bei Erhöhung des Laubholz-Anteils",null,null,null,null,null,null,null,null,null,null,"HV 1",null,null,null,null,null,null,null,null,null,null,null,null,null,null,null,null,null,null,null,null,null,null,null,null,null,null,null,null,null,null,null,null,null,null,null,null,null,null,null,null,"Differenz im erntekostenfreien Erlöse bei Erhöhung des Laubholz-Anteils",null,null,null,null,null,null,null,null,null,null,"HV 2",null,null,null,null,null,null,null,null,null,null,null,null,null,null,null,null,null,null,null,null,null,null,null,null,null,null,null,null,null,null,null,null,null,null,null,null,null,null,null,null,"Differenz im erntekostenfreien Erlöse bei Erhöhung des Laubholz-Anteils",null,null,null,null,null,null,null,null,null,null,"HV 3"]
[null,null,null,null,null,null,null,null,null,null,null,null,null,null,null,null,null,null,null,null,null,null,null,null,null,null,null,null,null,null,null,null,null,null,null,null,null,null,null,null,null,null,null,null,null,null,null,null,null,null,null,null,null,null,null,null,null,null,null,null,null,null,null,null,null,null,null,"Empfehlung: Laubbäume bevorzugen (ES 3)",null,null,null,null,null,null,null,null,null,null,null,null,null,null,null,null,null,null,null,null,null,null,null,null,null,null,null,null,null,null,null,null,null,null,null,null,null,null,null,null,null,null,null,null,null,null,null,null,null,null,null,"Empfehlung: Laubbäume bevorzugen (ES 3)",null,null,null,null,null,null,null,null,null,null,null,null,null,null,null,null,null,null,null,null,null,null,null,null,null,null,null,null,null,null,null,null,null,null,null,null,null,null,null,null,null,null,null,null,null,null,null,null,null,null,null,"Empfehlung: Laubbäume bevorzugen (ES 3)"]
[]
[]
[]
[]
[]
[null,null,null,null,null,null,null,null,null,null,null,null,null,null,null,null,null,null,null,null,null,null,null,null,null,null,null,null,null,null,null,null,null,null,null,null,null,null,null,null,null,null,null,null,null,null,null,null,null,null,null,null,null,null,null,null,null,null,null,null,null,null,null,null,null,null,null,"Erntekostenfreier Erlös in Fr./(ha a)",null,null,null,null,null,null,null,null,null,null,null,null,null,null,null,null,null,null,null,null,null,null,null,null,null,null,null,null,null,null,null,null,null,null,null,null,null,null,null,null,null,null,null,null,null,null,null,null,null,null,null,"Erntekostenfreier Erlös in Fr./(ha a)",null,null,null,null,null,null,null,null,null,null,null,null,null,null,null,null,null,null,null,null,null,null,null,null,null,null,null,null,null,null,null,null,null,null,null,null,null,null,null,null,null,null,null,null,null,null,null,null,null,null,null,"Erntekostenfreier Erlös in Fr./(ha a)"]
[]
[null,null,null,null,null,null,null,null,null,null,null,null,null,null,null,null,null,null,null,null,null,null,null,null,null,null,null,null,null,null,null,null,null,null,null,null,null,null,null,null,null,null,null,null,null,null,null,null,null,null,null,null,null,null,null,null,null,null,null,null,null,null,null,null,null,null,null,"Fichte",null,null,null,"Buche ",null,null,null,null,null,null,null,null,null,null,null,null,null,null,null,null,null,null,null,null,null,null,null,null,null,null,null,null,null,null,null,null,null,null,null,null,null,null,null,null,null,null,null,null,null,null,null,"Fichte",null,null,null,"Buche ",null,null,null,null,null,null,null,null,null,null,null,null,null,null,null,null,null,null,null,null,null,null,null,null,null,null,null,null,null,null,null,null,null,null,null,null,null,null,null,null,null,null,null,null,null,null,null,"Fichte",null,null,null,"Buche "]
[null,null,null,null,null,null,null,null,null,null,null,null,null,null,null,null,null,null,null,null,null,null,null,null,null,null,null,null,null,null,null,null,null,null,null,null,null,null,null,null,null,null,null,null,null,null,null,null,null,null,null,null,null,null,null,null,null,null,null,null,null,null,null,null,null,null,null,"Bonität","Holzernteverfahren",null,null,"Bonität","Holzernteverfahren",null,null,null,null,null,null,null,null,null,null,null,null,null,null,null,null,null,null,null,null,null,null,null,null,null,null,null,null,null,null,null,null,null,null,null,null,null,null,null,null,null,null,null,null,null,null,"Bonität","Holzernteverfahren",null,null,"Bonität","Holzernteverfahren",null,null,null,null,null,null,null,null,null,null,null,null,null,null,null,null,null,null,null,null,null,null,null,null,null,null,null,null,null,null,null,null,null,null,null,null,null,null,null,null,null,null,null,null,null,null,"Bonität","Holzernteverfahren",null,null,"Bonität","Holzernteverfahren"]
[null,null,null,null,null,null,null,null,null,null,null,null,null,null,null,null,null,null,null,null,null,null,null,null,null,null,null,null,null,null,null,null,null,null,null,null,null,null,null,null,null,null,null,null,null,null,null,null,null,null,null,null,null,null,null,null,null,null,null,null,null,null,null,null,null,null,null,null,"1)","2)","3)",null,"1)","2)","3)",null,null,null,null,null,null,null,null,null,null,null,null,null,null,null,null,null,null,null,null,null,null,null,null,null,null,null,null,null,null,null,null,null,null,null,null,null,null,null,null,null,null,null,null,null,"1)","2)","3)",null,"1)","2)","3)",null,null,null,null,null,null,null,null,null,null,null,null,null,null,null,null,null,null,null,null,null,null,null,null,null,null,null,null,null,null,null,null,null,null,null,null,null,null,null,null,null,null,null,null,null,"1)","2)","3)",null,"1)","2)","3)"]
[null,null,null,null,null,null,null,null,null,null,null,null,null,null,null,null,null,null,null,null,null,null,null,null,null,null,null,null,null,null,null,null,null,null,null,null,null,null,null,null,null,null,null,null,null,null,null,null,null,null,null,null,null,null,null,null,null,null,null,null,null,null,null,null,null,null,null,18,{"$f":"Erntekostenfreie_Erlöse!C6","v":66.947825024437975},{"$f":"Erntekostenfreie_Erlöse!D6","v":513.13839077283683},{"$f":"Erntekostenfreie_Erlöse!E6","v":-12.211762641520977},18,{"$f":"Erntekostenfreie_Erlöse!H6","v":-89.346111111111099},{"$f":"Erntekostenfreie_Erlöse!I6","v":115.98020499923791},{"$f":"Erntekostenfreie_Erlöse!J6","v":-91.350919456027668},null,null,null,null,null,null,null,null,null,null,null,null,null,null,null,null,null,null,null,null,null,null,null,null,null,null,null,null,null,null,null,null,null,null,null,null,null,null,null,null,null,null,null,null,18,{"$f":"Erntekostenfreie_Erlöse!C6","v":66.947825024437975},{"$f":"Erntekostenfreie_Erlöse!D6","v":513.13839077283683},{"$f":"Erntekostenfreie_Erlöse!E6","v":-12.211762641520977},18,{"$f":"Erntekostenfreie_Erlöse!H6","v":-89.346111111111099},{"$f":"Erntekostenfreie_Erlöse!I6","v":115.98020499923791},{"$f":"Erntekostenfreie_Erlöse!J6","v":-91.350919456027668},null,null,null,null,null,null,null,null,null,null,null,null,null,null,null,null,null,null,null,null,null,null,null,null,null,null,null,null,null,null,null,null,null,null,null,null,null,null,null,null,null,null,null,null,18,{"$f":"Erntekostenfreie_Erlöse!C6","v":66.947825024437975},{"$f":"Erntekostenfreie_Erlöse!D6","v":513.13839077283683},{"$f":"Erntekostenfreie_Erlöse!E6","v":-12.211762641520977},18,{"$f":"Erntekostenfreie_Erlöse!H6","v":-89.346111111111099},{"$f":"Erntekostenfreie_Erlöse!I6","v":115.98020499923791},{"$f":"Erntekostenfreie_Erlöse!J6","v":-91.350919456027668}]
[null,null,null,null,null,null,null,null,null,null,null,null,null,null,null,null,null,null,null,null,null,null,null,null,null,null,null,null,null,null,null,null,null,null,null,null,null,null,null,null,null,null,null,null,null,null,null,null,null,null,null,null,null,null,null,null,null,null,null,null,null,null,null,null,null,null,null,22,{"$f":"Erntekostenfreie_Erlöse!C7","v":239.36127733980504},{"$f":"Erntekostenfreie_Erlöse!D7","v":795.96298961701814},{"$f":"Erntekostenfreie_Erlöse!E7","v":142.52953090589585},22,{"$f":"Erntekostenfreie_Erlöse!H7","v":46.595906909514383},{"$f":"Erntekostenfreie_Erlöse!I7","v":287.51520551281698},{"$f":"Erntekostenfreie_Erlöse!J7","v":9.0864753684635957},null,null,null,null,null,null,null,null,null,null,null,null,null,null,null,null,null,null,null,null,null,null,null,null,null,null,null,null,null,null,null,null,null,null,null,null,null,null,null,null,null,null,null,null,22,{"$f":"Erntekostenfreie_Erlöse!C7","v":239.36127733980504},{"$f":"Erntekostenfreie_Erlöse!D7","v":795.96298961701814},{"$f":"Erntekostenfreie_Erlöse!E7","v":142.52953090589585},22,{"$f":"Erntekostenfreie_Erlöse!H7","v":46.595906909514383},{"$f":"Erntekostenfreie_Erlöse!I7","v":287.51520551281698},{"$f":"Erntekostenfreie_Erlöse!J7","v":9.0864753684635957},null,null,null,null,null,null,null,null,null,null,null,null,null,null,null,null,null,null,null,null,null,null,null,null,null,null,null,null,null,null,null,null,null,null,null,null,null,null,null,null,null,null,null,null,22,{"$f":"Erntekostenfreie_Erlöse!C7","v":239.36127733980504},{"$f":"Erntekostenfreie_Erlöse!D7","v":795.96298961701814},{"$f":"Erntekostenfreie_Erlöse!E7","v":142.52953090589585},22,{"$f":"Erntekostenfreie_Erlöse!H7","v":46.595906909514383},{"$f":"Erntekostenfreie_Erlöse!I7","v":287.51520551281698},{"$f":"Erntekostenfreie_Erlöse!J7","v":9.0864753684635957}]
[null,null,null,null,null,null,null,null,null,null,null,null,null,null,null,null,null,null,null,null,null,null,null,null,null,null,null,null,null,null,null,null,null,null,null,null,null,null,null,null,null,null,null,null,null,null,null,null,null,null,null,null,null,null,null,null,null,null,null,null,null,null,null,null,null,null,null,26,{"$f":"Erntekostenfreie_Erlöse!C8","v":365.15368098159502},{"$f":"Erntekostenfreie_Erlöse!D8","v":1114.3726951585313},{"$f":"Erntekostenfreie_Erlöse!E8","v":237.67434685936632},26,{"$f":"Erntekostenfreie_Erlöse!H8","v":95.628997315950869},{"$f":"Erntekostenfreie_Erlöse!I8","v":432.46225239728426},{"$f":"Erntekostenfreie_Erlöse!J8","v":41.810908515066671},null,null,null,null,null,null,null,null,null,null,null,null,null,null,null,null,null,null,null,null,null,null,null,null,null,null,null,null,null,null,null,null,null,null,null,null,null,null,null,null,null,null,null,null,26,{"$f":"Erntekostenfreie_Erlöse!C8","v":365.15368098159502},{"$f":"Erntekostenfreie_Erlöse!D8","v":1114.3726951585313},{"$f":"Erntekostenfreie_Erlöse!E8","v":237.67434685936632},26,{"$f":"Erntekostenfreie_Erlöse!H8","v":95.628997315950869},{"$f":"Erntekostenfreie_Erlöse!I8","v":432.46225239728426},{"$f":"Erntekostenfreie_Erlöse!J8","v":41.810908515066671},null,null,null,null,null,null,null,null,null,null,null,null,null,null,null,null,null,null,null,null,null,null,null,null,null,null,null,null,null,null,null,null,null,null,null,null,null,null,null,null,null,null,null,null,26,{"$f":"Erntekostenfreie_Erlöse!C8","v":365.15368098159502},{"$f":"Erntekostenfreie_Erlöse!D8","v":1114.3726951585313},{"$f":"Erntekostenfreie_Erlöse!E8","v":237.67434685936632},26,{"$f":"Erntekostenfreie_Erlöse!H8","v":95.628997315950869},{"$f":"Erntekostenfreie_Erlöse!I8","v":432.46225239728426},{"$f":"Erntekostenfreie_Erlöse!J8","v":41.810908515066671}]
[null,null,null,null,null,null,null,null,null,null,null,null,null,null,null,null,null,null,null,null,null,null,null,null,null,null,null,null,null,null,null,null,null,null,null,null,null,null,null,null,null,null,null,null,null,null,null,null,null,null,null,null,null,null,null,null,null,null,null,null,null,null,null,null,null,null,null,30,{"$f":"Erntekostenfreie_Erlöse!C9","v":499.95042558086038},{"$f":"Erntekostenfreie_Erlöse!D9","v":1402.3278388278388},{"$f":"Erntekostenfreie_Erlöse!E9","v":341.76957942565514},null,null,null,null,null,null,null,null,null,null,null,null,null,null,null,null,null,null,null,null,null,null,null,null,null,null,null,null,null,null,null,null,null,null,null,null,null,null,null,null,null,null,null,null,null,null,null,null,30,{"$f":"Erntekostenfreie_Erlöse!C9","v":499.95042558086038},{"$f":"Erntekostenfreie_Erlöse!D9","v":1402.3278388278388},{"$f":"Erntekostenfreie_Erlöse!E9","v":341.76957942565514},null,null,null,null,null,null,null,null,null,null,null,null,null,null,null,null,null,null,null,null,null,null,null,null,null,null,null,null,null,null,null,null,null,null,null,null,null,null,null,null,null,null,null,null,null,null,null,null,30,{"$f":"Erntekostenfreie_Erlöse!C9","v":499.95042558086038},{"$f":"Erntekostenfreie_Erlöse!D9","v":1402.3278388278388},{"$f":"Erntekostenfreie_Erlöse!E9","v":341.76957942565514}]
[]
[]
[null,null,null,null,null,null,null,null,null,null,null,null,null,null,null,null,null,null,null,null,null,null,null,null,null,null,null,null,null,null,null,null,null,null,null,null,null,null,null,null,null,null,null,null,null,null,null,null,null,null,null,null,null,null,null,null,null,null,null,null,null,null,null,null,null,null,null,null,null,null,null,null,null,"Abk.",null,null,null,null,null,null,null,null,null,null,null,null,null,null,null,null,null,null,null,null,null,null,null,null,null,null,null,null,null,null,null,null,null,null,null,null,null,null,null,null,null,null,null,null,null,null,null,null,null,null,null,"Abk.",null,null,null,null,null,null,null,null,null,null,null,null,null,null,null,null,null,null,null,null,null,null,null,null,null,null,null,null,null,null,null,null,null,null,null,null,null,null,null,null,null,null,null,null,null,null,null,null,null,null,null,"Abk."]
[null,null,null,null,null,null,null,null,null,null,null,null,null,null,null,null,null,null,null,null,null,null,null,null,null,null,null,null,null,null,null,null,null,null,null,null,null,null,null,null,null,null,null,null,null,null,null,null,null,null,null,null,null,null,null,null,null,null,null,null,null,null,null,null,null,null,null,"Laubholzanteil ist",null,null,null,null,null,"LHist",null,50,"%",null,null,null,null,null,null,null,null,null,null,null,null,null,null,null,null,null,null,null,null,null,null,null,null,null,null,null,null,null,null,null,null,null,null,null,null,null,null,null,null,null,null,"Laubholzanteil ist",null,null,null,null,null,"LHist",null,50,"%",null,null,null,null,null,null,null,null,null,null,null,null,null,null,null,null,null,null,null,null,null,null,null,null,null,null,null,null,null,null,null,null,null,null,null,null,null,null,null,null,null,null,"Laubholzanteil ist",null,null,null,null,null,"LHist",null,50,"%"]
[null,null,null,null,null,null,null,null,null,null,null,null,null,null,null,null,null,null,null,null,null,null,null,null,null,null,null,null,null,null,null,null,null,null,null,null,null,null,null,null,null,null,null,null,null,null,null,null,null,null,null,null,null,null,null,null,null,null,null,null,null,null,null,null,null,null,null,"Laubholzanteil soll ",null,null,null,null,null,"LHsoll ",null,100,"%",null,null,null,null,null,null,null,null,null,null,null,null,null,null,null,null,null,null,null,null,null,null,null,null,null,null,null,null,null,null,null,null,null,null,null,null,null,null,null,null,null,null,"Laubholzanteil soll",null,null,null,null,null,"LHsoll ",null,100,"%",null,null,null,null,null,null,null,null,null,null,null,null,null,null,null,null,null,null,null,null,null,null,null,null,null,null,null,null,null,null,null,null,null,null,null,null,null,null,null,null,null,null,"Laubholzanteil soll",null,null,null,null,null,"LHsoll ",null,100,"%"]
[null,null,null,null,null,null,null,null,null,null,null,null,null,null,null,null,null,null,null,null,null,null,null,null,null,null,null,null,null,null,null,null,null,null,null,null,null,null,null,null,null,null,null,null,null,null,null,null,null,null,null,null,null,null,null,null,null,null,null,null,null,null,null,null,null,null,null,"Erntekostenfreier Erlös für Fichte (entsprechend der Bonität)",null,null,null,null,null,"Efi",null,365,"Fr./(ha a)","Werte aus Tabelle entnehmen ",null,null,null,null,null,null,null,null,null,null,null,null,null,null,null,null,null,null,null,null,null,null,null,null,null,null,null,null,null,null,null,null,null,null,null,null,null,null,null,null,null,"Erntekostenfreier Erlös für Fichte (entsprechend der Bonität)",null,null,null,null,null,"Efi",null,1114,"Fr./(ha a)","Werte aus Tabelle entnehmen",null,null,null,null,null,null,null,null,null,null,null,null,null,null,null,null,null,null,null,null,null,null,null,null,null,null,null,null,null,null,null,null,null,null,null,null,null,null,null,null,null,"Erntekostenfreier Erlös für Fichte (entsprechend der Bonität)",null,null,null,null,null,"Efi",null,238,"Fr./(ha a)","Werte aus Tabelle entnehmen"]
[null,null,null,null,null,null,null,null,null,null,null,null,null,null,null,null,null,null,null,null,null,null,null,null,null,null,null,null,null,null,null,null,null,null,null,null,null,null,null,null,null,null,null,null,null,null,null,null,null,null,null,null,null,null,null,null,null,null,null,null,null,null,null,null,null,null,null,"Erntekostenfreier Erlös für Buche (entsprechend der Bonität)",null,null,null,null,null,"Ebu",null,47,"Fr./(ha a)",null,null,null,null,null,null,null,null,null,null,null,null,null,null,null,null,null,null,null,null,null,null,null,null,null,null,null,null,null,null,null,null,null,null,null,null,null,null,null,null,null,null,"Erntekostenfreier Erlös für Buche (entsprechend der Bonität)",null,null,null,null,null,"Ebu",null,288,"Fr./(ha a)",null,null,null,null,null,null,null,null,null,null,null,null,null,null,null,null,null,null,null,null,null,null,null,null,null,null,null,null,null,null,null,null,null,null,null,null,null,null,null,null,null,null,"Erntekostenfreier Erlös für Buche (entsprechend der Bonität)",null,null,null,null,null,"Ebu",null,9,"Fr./(ha a)"]
[]
[null,null,null,null,null,null,null,null,null,null,null,null,null,null,null,null,null,null,null,null,null,null,null,null,null,null,null,null,null,null,null,null,null,null,null,null,null,null,null,null,null,null,null,null,null,null,null,null,null,null,null,null,null,null,null,null,null,null,null,null,null,null,null,null,null,null,null,"Differenz im erntekostenfreien Erlös bei Erhöhung ",null,null,null,null,null,"DIFFLH NH",null,{"$f":"((BX1145-BX1144)*(BX1146-BX1147))/100","v":159},"Fr./(ha a)",null,null,null,null,null,null,null,null,null,null,null,null,null,null,null,null,null,null,null,null,null,null,null,null,null,null,null,null,null,null,null,null,null,null,null,null,null,null,null,null,null,null,"Differenz im erntekostenfreier Erlös bei Erhöhung",null,null,null,null,null,"DIFFLH NH",null,{"$f":"((DX1145-DX1144)*(DX1146-DX1147))/100","v":413},"Fr./(ha a)",null,null,null,null,null,null,null,null,null,null,null,null,null,null,null,null,null,null,null,null,null,null,null,null,null,null,null,null,null,null,null,null,null,null,null,null,null,null,null,null,null,null,"Differenz im erntekostenfreier Erlös bei Erhöhung",null,null,null,null,null,"DIFFLH NH",null,{"$f":"((FX1145-FX1144)*(FX1146-FX1147))/100","v":114.5},"Fr./(ha a)"]
[null,null,null,null,null,null,null,null,null,null,null,null,null,null,null,null,null,null,null,null,null,null,null,null,null,null,null,null,null,null,null,null,null,null,null,null,null,null,null,null,null,null,null,null,null,null,null,null,null,null,null,null,null,null,null,null,null,null,null,null,null,null,null,null,null,null,null,"des LH-Anteils",null,null,null,null,null,null,null,null,null,null,null,null,null,null,null,null,null,null,null,null,null,null,null,null,null,null,null,null,null,null,null,null,null,null,null,null,null,null,null,null,null,null,null,null,null,null,null,null,null,null,null,"des LH-Anteils",null,null,null,null,null,null,null,null,null,null,null,null,null,null,null,null,null,null,null,null,null,null,null,null,null,null,null,null,null,null,null,null,null,null,null,null,null,null,null,null,null,null,null,null,null,null,null,null,null,null,null,"des LH-Anteils"]
[]
[]
[]
[]
[]
[]
[]
[]
[]
[]
[]
[]
[]
[]
[]
[]
[]
[]
[]
[]
[]
[]
[]
[]
[]
[]
[]
[]
[]
[]
[]
[]
[]
[]
[]
[]
[]
[]
[]
[]
[]
[]
[]
[]
[]
[]
[]
[]
[]
[]
[]
[]
[]
[]
[]
[]
[]
[]
[]
[]
[]
[]
[]
[]
[]
[]
[]
[]
[]
[]
[]
[]
[]
[]
[]
[]
[]
[]
[]
[]
[]
[]
[]
[]
[]
[]
[]
[]
[]
[]
[]
[]
[]
[]
[]
[]
[]
[]
[]
[]
[]
[]
[]
[]
[]
[]
[]
[]
[]
[]
[]
[]
[]
[]
[]
[]
[]
[]
[]
[]
[]
[]
[]
[]
[]
[]
[]
[]
[]
[]
[]
[]
[]
[]
[]
[]
[]
[null,null,null,null,null,null,null,null,null,null,null,null,null,null,null,null,null,null,null,null,null,null,null,null,null,null,null,null,null,null,null,null,null,null,null,null,null,null,null,null,null,null,null,null,null,null,null,null,null,null,null,null,null,null,null,null,null,null,null,null,null,null,null,null,null,null,null,"Zusätzliche Kosten für das Betanken der Motorsäge in S3",null,null,null,null,null,null,null,null,null,null,"HV 1",null,null,null,null,null,null,null,null,null,null,null,null,null,null,null,null,null,null,null,null,null,null,null,null,null,null,null,null,null,null,null,null,null,null,null,null,null,null,null,null,null,null,null,null,null,null,null,null,null,null,null,null,null,null,null,null,null,null,null,null,null,null,null,null,null,null,null,null,null,null,null,null,null,null,null,null,null,null,null,null,null,null,null,null,null,null,null,null,null,null,null,null,"Zusätzliche Kosten für das Betanken der Motorsäge in S3",null,null,null,null,null,null,null,null,null,null,"HV 3"]
[null,null,null,null,null,null,null,null,null,null,null,null,null,null,null,null,null,null,null,null,null,null,null,null,null,null,null,null,null,null,null,null,null,null,null,null,null,null,null,null,null,null,null,null,null,null,null,null,null,null,null,null,null,null,null,null,null,null,null,null,null,null,null,null,null,null,null,"Empfehlung: Kein Betanken von Maschinen (ES 2)",null,null,null,null,null,null,null,null,null,null,null,null,null,null,null,null,null,null,null,null,null,null,null,null,null,null,null,null,null,null,null,null,null,null,null,null,null,null,null,null,null,null,null,null,null,null,null,null,null,null,null,null,null,null,null,null,null,null,null,null,null,null,null,null,null,null,null,null,null,null,null,null,null,null,null,null,null,null,null,null,null,null,null,null,null,null,null,null,null,null,null,null,null,null,null,null,null,null,null,null,null,null,null,"Empfehlung: Kein Betanken von Maschinen (ES 2)"]
[]
[]
[]
[]
[]
[null,null,null,null,null,null,null,null,null,null,null,null,null,null,null,null,null,null,null,null,null,null,null,null,null,null,null,null,null,null,null,null,null,null,null,null,null,null,null,null,null,null,null,null,null,null,null,null,null,null,null,null,null,null,null,null,null,null,null,null,null,null,null,null,null,null,null,null,null,null,null,null,null,"Abk.",null,null,null,null,null,null,null,null,null,null,null,null,null,null,null,null,null,null,null,null,null,null,null,null,null,null,null,null,null,null,null,null,null,null,null,null,null,null,null,null,null,null,null,null,null,null,null,null,null,null,null,null,null,null,null,null,null,null,null,null,null,null,null,null,null,null,null,null,null,null,null,null,null,null,null,null,null,null,null,null,null,null,null,null,null,null,null,null,null,null,null,null,null,null,null,null,null,null,null,null,null,null,null,"Abk."]
[null,null,null,null,null,null,null,null,null,null,null,null,null,null,null,null,null,null,null,null,null,null,null,null,null,null,null,null,null,null,null,null,null,null,null,null,null,null,null,null,null,null,null,null,null,null,null,null,null,null,null,null,null,null,null,null,null,null,null,null,null,null,null,null,null,null,null,"durchschnittliche Marschdistanz Grenze S2 (bis Fahrzeug)",null,null,null,null,null,"Mdist",null,0.26,"km",null,null,null,null,null,null,null,null,null,null,null,null,null,null,null,null,null,null,null,null,null,null,null,null,null,null,null,null,null,null,null,null,null,null,null,null,null,null,null,null,null,null,null,null,null,null,null,null,null,null,null,null,null,null,null,null,null,null,null,null,null,null,null,null,null,null,null,null,null,null,null,null,null,null,null,null,null,null,null,null,null,null,null,null,null,null,null,null,null,null,null,null,null,null,"durchschnittliche Marschdistanz Grenze S2",null,null,null,null,null,"Mdist",null,0.26,"km"]
[null,null,null,null,null,null,null,null,null,null,null,null,null,null,null,null,null,null,null,null,null,null,null,null,null,null,null,null,null,null,null,null,null,null,null,null,null,null,null,null,null,null,null,null,null,null,null,null,null,null,null,null,null,null,null,null,null,null,null,null,null,null,null,null,null,null,null,"Lohnansatz Forstwart (motormanuelle Holzhauerei)",null,null,null,null,null,"Kfor",null,{"$f":"BX328","v":75},"Fr./h",null,null,null,null,null,null,null,null,null,null,null,null,null,null,null,null,null,null,null,null,null,null,null,null,null,null,null,null,null,null,null,null,null,null,null,null,null,null,null,null,null,null,null,null,null,null,null,null,null,null,null,null,null,null,null,null,null,null,null,null,null,null,null,null,null,null,null,null,null,null,null,null,null,null,null,null,null,null,null,null,null,null,null,null,null,null,null,null,null,null,null,null,null,null,"Lohnansatz Forstwart (motormanuelle Holzhauerei)",null,null,null,null,null,"Kfor",null,{"$f":"FX328","v":75},"Fr./h"]
[null,null,null,null,null,null,null,null,null,null,null,null,null,null,null,null,null,null,null,null,null,null,null,null,null,null,null,null,null,null,null,null,null,null,null,null,null,null,null,null,null,null,null,null,null,null,null,null,null,null,null,null,null,null,null,null,null,null,null,null,null,null,null,null,null,null,null,"Marschgeschwindigkeit",null,null,null,null,null,"Mgesch",null,5,"km/h",null,null,null,null,null,null,null,null,null,null,null,null,null,null,null,null,null,null,null,null,null,null,null,null,null,null,null,null,null,null,null,null,null,null,null,null,null,null,null,null,null,null,null,null,null,null,null,null,null,null,null,null,null,null,null,null,null,null,null,null,null,null,null,null,null,null,null,null,null,null,null,null,null,null,null,null,null,null,null,null,null,null,null,null,null,null,null,null,null,null,null,null,null,null,"Marschgeschwindigkeit",null,null,null,null,null,"Mgesch",null,5,"km/h"]
[null,null,null,null,null,null,null,null,null,null,null,null,null,null,null,null,null,null,null,null,null,null,null,null,null,null,null,null,null,null,null,null,null,null,null,null,null,null,null,null,null,null,null,null,null,null,null,null,null,null,null,null,null,null,null,null,null,null,null,null,null,null,null,null,null,null,null,"Nutzungsmenge in S2 und S3 pro Hektar und Jahr",null,null,null,null,null,"NS2+S3",null,{"$f":"($AR$170+$AR$171)/($AR$168+$AR$169)","v":11.295081967213115},"m3/(ha a)",null,null,null,null,null,null,null,null,null,null,null,null,null,null,null,null,null,null,null,null,null,null,null,null,null,null,null,null,null,null,null,null,null,null,null,null,null,null,null,null,null,null,null,null,null,null,null,null,null,null,null,null,null,null,null,null,null,null,null,null,null,null,null,null,null,null,null,null,null,null,null,null,null,null,null,null,null,null,null,null,null,null,null,null,null,null,null,null,null,null,null,null,null,null,"Nutzungsmenge in S2 und S3 pro Hektar und Jahr",null,null,null,null,null,"NS2+S3",null,{"$f":"($AR$170+$AR$171)/($AR$168+$AR$169)","v":11.295081967213115},"m3/(ha a)"]
[null,null,null,null,null,null,null,null,null,null,null,null,null,null,null,null,null,null,null,null,null,null,null,null,null,null,null,null,null,null,null,null,null,null,null,null,null,null,null,null,null,null,null,null,null,null,null,null,null,null,null,null,null,null,null,null,null,null,null,null,null,null,null,null,null,null,null,"Verbrauch des Gerätebenzins Motorsäge",null,null,null,null,null,"Vgms",null,0.5,"l/m3",null,null,null,null,null,null,null,null,null,null,null,null,null,null,null,null,null,null,null,null,null,null,null,null,null,null,null,null,null,null,null,null,null,null,null,null,null,null,null,null,null,null,null,null,null,null,null,null,null,null,null,null,null,null,null,null,null,null,null,null,null,null,null,null,null,null,null,null,null,null,null,null,null,null,null,null,null,null,null,null,null,null,null,null,null,null,null,null,null,null,null,null,null,null,"Verbrauch des Gerätebenzins Motorsäge",null,null,null,null,null,"Vgms",null,0.5,"l/m3"]
[null,null,null,null,null,null,null,null,null,null,null,null,null,null,null,null,null,null,null,null,null,null,null,null,null,null,null,null,null,null,null,null,null,null,null,null,null,null,null,null,null,null,null,null,null,null,null,null,null,null,null,null,null,null,null,null,null,null,null,null,null,null,null,null,null,null,null,"Fassungsvermögen Treibstofftank Motorsäge",null,null,null,null,null,"Tvol",null,0.7,"l ",null,null,null,null,null,null,null,null,null,null,null,null,null,null,null,null,null,null,null,null,null,null,null,null,null,null,null,null,null,null,null,null,null,null,null,null,null,null,null,null,null,null,null,null,null,null,null,null,null,null,null,null,null,null,null,null,null,null,null,null,null,null,null,null,null,null,null,null,null,null,null,null,null,null,null,null,null,null,null,null,null,null,null,null,null,null,null,null,null,null,null,null,null,null,"Fassungsvermögen Treibstofftank Motorsäge",null,null,null,null,null,"Tvol",null,0.7,"l "]
[]
[null,null,null,null,null,null,null,null,null,null,null,null,null,null,null,null,null,null,null,null,null,null,null,null,null,null,null,null,null,null,null,null,null,null,null,null,null,null,null,null,null,null,null,null,null,null,null,null,null,null,null,null,null,null,null,null,null,null,null,null,null,null,null,null,null,null,null,"Zusätzliche Kosten für das Betanken der Motorsäge in S3",null,null,null,null,null,"ZKTank",null,{"$f":"(2*BX1296*BX1297*BX1299*BX1300)/(BX1298*BX1301)","v":62.929742388758783},"Fr./(ha a)",null,null,null,null,null,null,null,null,null,null,null,null,null,null,null,null,null,null,null,null,null,null,null,null,null,null,null,null,null,null,null,null,null,null,null,null,null,null,null,null,null,null,null,null,null,null,null,null,null,null,null,null,null,null,null,null,null,null,null,null,null,null,null,null,null,null,null,null,null,null,null,null,null,null,null,null,null,null,null,null,null,null,null,null,null,null,null,null,null,null,null,null,null,null,"Zusätzliche Kosten für das Betanken der Motorsäge in S3",null,null,null,null,null,"ZKTank",null,{"$f":"(2*FX1296*FX1297*FX1299*FX1300)/(FX1298*FX1301)","v":62.929742388758783},"Fr./(ha a)"]
[]
[]
[]
[]
[]
[]
[]
[]
[]
[]
[]
[]
[]
[]
[]
[]
[]
[]
[]
[]
[]
[]
[]
[]
[]
[]
[]
[]
[]
[]
[]
[]
[]
[]
[]
[]
[]
[]
[]
[]
[]
[]
[]
[]
[]
[]
[]
[]
[]
[]
[]
[]
[]
[]
[]
[]
[]
[]
[]
[]
[]
[]
[]
[]
[]
[]
[]
[]
[]
[]
[]
[]
[]
[]
[]
[]
[]
[]
[]
[]
[]
[]
[]
[]
[]
[]
[]
[]
[]
[]
[]
[]
[]
[]
[]
[]
[]
[]
[]
[]
[]
[]
[]
[]
[]
[]
[]
[]
[]
[]
[]
[]
[]
[]
[]
[]
[]
[]
[]
[]
[]
[]
[]
[]
[]
[]
[]
[]
[]
[]
[]
[]
[]
[]
[]
[]
[]
[]
[]
[]
[]
[]
[]
[]
[null,null,null,null,null,null,null,null,null,null,null,null,null,null,null,null,null,null,null,null,null,null,null,null,null,null,null,null,null,null,null,null,null,null,null,null,null,null,null,null,null,null,null,null,null,null,null,null,null,null,null,null,null,null,null,null,null,null,null,null,null,null,null,null,null,null,null,"Zusätzliche Kosten durch Entfernen von Ernterückständen",null,null,null,null,null,null,null,null,null,null,"HV 1",null,null,null,null,null,null,null,null,null,null,null,null,null,null,null,null,null,null,null,null,null,null,null,null,null,null,null,null,null,null,null,null,null,null,null,null,null,null,null,null,"Zusätzliche Kosten durch Entfernen von Ernterückständen",null,null,null,null,null,null,null,null,null,null,"HV 2"]
[null,null,null,null,null,null,null,null,null,null,null,null,null,null,null,null,null,null,null,null,null,null,null,null,null,null,null,null,null,null,null,null,null,null,null,null,null,null,null,null,null,null,null,null,null,null,null,null,null,null,null,null,null,null,null,null,null,null,null,null,null,null,null,null,null,null,null,"Empfehlung: Entfernen von Ernterückständen (ES 2)",null,null,null,null,null,null,null,null,null,null,null,null,null,null,null,null,null,null,null,null,null,null,null,null,null,null,null,null,null,null,null,null,null,null,null,null,null,null,null,null,null,null,null,null,null,null,null,null,null,null,null,"Empfehlung: Entfernen von Ernterückständen (ES 2)"]
[]
[]
[]
[]
[null,null,null,null,null,null,null,null,null,null,null,null,null,null,null,null,null,null,null,null,null,null,null,null,null,null,null,null,null,null,null,null,null,null,null,null,null,null,null,null,null,null,null,null,null,null,null,null,null,null,null,null,null,null,null,null,null,null,null,null,null,null,null,null,null,null,null,null,null,null,null,null,null,"Abk.",null,null,null,null,null,null,null,null,null,null,null,null,null,null,null,null,null,null,null,null,null,null,null,null,null,null,null,null,null,null,null,null,null,null,null,null,null,null,null,null,null,null,null,null,null,null,null,null,null,null,null,"Abk."]
[null,null,null,null,null,null,null,null,null,null,null,null,null,null,null,null,null,null,null,null,null,null,null,null,null,null,null,null,null,null,null,null,null,null,null,null,null,null,null,null,null,null,null,null,null,null,null,null,null,null,null,null,null,null,null,null,null,null,null,null,null,null,null,null,null,null,null,"Nutzungsmenge in S2 pro Hektar und Jahr",null,null,null,null,null,"NS2",null,{"$f":"$AR$170/$AR$168","v":11.285714285714286},"m3/(ha a)",null,null,null,null,null,null,null,null,null,null,null,null,null,null,null,null,null,null,null,null,null,null,null,null,null,null,null,null,null,null,null,null,null,null,null,null,null,null,null,null,null,null,"Nutzungsmenge in S2 pro Hektar und Jahr",null,null,null,null,null,"NS2",null,{"$f":"$AR$170/$AR$168","v":11.285714285714286},"m3/(ha a)"]
[null,null,null,null,null,null,null,null,null,null,null,null,null,null,null,null,null,null,null,null,null,null,null,null,null,null,null,null,null,null,null,null,null,null,null,null,null,null,null,null,null,null,null,null,null,null,null,null,null,null,null,null,null,null,null,null,null,null,null,null,null,null,null,null,null,null,null,"Anteil Ernterückstände",null,null,null,null,null,"Pernt",null,0.1,"-",null,null,null,null,null,null,null,null,null,null,null,null,null,null,null,null,null,null,null,null,null,null,null,null,null,null,null,null,null,null,null,null,null,null,null,null,null,null,null,null,null,null,"Anteil Ernterückstände",null,null,null,null,null,"Pernt",null,0.1,"-"]
[null,null,null,null,null,null,null,null,null,null,null,null,null,null,null,null,null,null,null,null,null,null,null,null,null,null,null,null,null,null,null,null,null,null,null,null,null,null,null,null,null,null,null,null,null,null,null,null,null,null,null,null,null,null,null,null,null,null,null,null,null,null,null,null,null,null,null,"Kosten Schlagräumung (rücken mit Forwarder + Hacken)",null,null,null,null,null,"Kha",null,25,"Fr./m3",null,null,null,null,null,null,null,null,null,null,null,null,null,null,null,null,null,null,null,null,null,null,null,null,null,null,null,null,null,null,null,null,null,null,null,null,null,null,null,null,null,null,"Kosten Schlagräumung (rücken mit Forwarder + Hacken)",null,null,null,null,null,"Kha",null,25,"Fr./m3"]
[]
[null,null,null,null,null,null,null,null,null,null,null,null,null,null,null,null,null,null,null,null,null,null,null,null,null,null,null,null,null,null,null,null,null,null,null,null,null,null,null,null,null,null,null,null,null,null,null,null,null,null,null,null,null,null,null,null,null,null,null,null,null,null,null,null,null,null,null,"Zusätzliche Kosten durch Entfernen von Ernterückständen",null,null,null,null,null,"ZKEr",null,{"$f":"BX1455*BX1456*BX1457","v":28.214285714285719},"Fr./(ha a)",null,null,null,null,null,null,null,null,null,null,null,null,null,null,null,null,null,null,null,null,null,null,null,null,null,null,null,null,null,null,null,null,null,null,null,null,null,null,null,null,null,null,"Zusätzliche Kosten durch Entfernen von Ernterückständen",null,null,null,null,null,"ZKEr",null,{"$f":"DX1455*DX1456*DX1457","v":28.214285714285719},"Fr./(ha a)"]
[]
[]
[]
[]
[]
[]
[]
[]
[]
[]
[]
[]
[]
[]
[]
[]
[]
[]
[]
[]
[]
[]
[]
[]
[]
[]
[]
[]
[]
[]
[]
[]
[]
[]
[]
[]
[]
[]
[]
[]
[]
[]
[]
[]
[]
[]
[]
[]
[]
[]
[]
[]
[]
[]
[]
[]
[]
[]
[]
[]
[]
[]
[]
[]
[]
[]
[]
[]
[]
[]
[]
[]
[]
[]
[]
[]
[]
[]
[]
[]
[]
[]
[]
[]
[]
[]
[]
[]
[]
[]
[]
[]
[]
[]
[]
[]
[]
[]
[]
[]
[]
[]
[]
[]
[]
[]
[]
[]
[]
[]
[]
[]
[]
[]
[]
[]
[]
[]
[]
[]
[]
[]
[]
[]
[]
[]
[]
[]
[]
[]
[]
[]
[]
[]
[]
[]
[]
[]
[]
[]
[]
[]
[]
[]
[]
[]
[]
[]
[]
[]
[]
[]
[]
[]
[null,null,null,null,null,null,null,null,null,null,null,null,null,null,null,null,null,null,null,null,null,null,null,null,null,null,null,null,null,null,null,null,null,null,null,null,null,null,null,null,null,null,null,null,null,null,null,null,null,null,null,null,null,null,null,null,null,null,null,null,null,null,null,null,null,null,null,"Ergebnis      -      Motormanuelles Holzernteverfahren",null,null,null,null,null,null,null,null,null,null,"HV 1",null,null,null,null,null,null,null,null,null,null,null,null,null,null,null,null,null,null,null,null,null,null,null,null,null,null,null,null,null,null,null,null,null,null,null,null,null,null,null,null,"Ergebnis      -      Vollmechanisiertes Holzernteverfahren",null,null,null,null,null,null,null,null,null,null,"HV 2",null,null,null,null,null,null,null,null,null,null,null,null,null,null,null,null,null,null,null,null,null,null,null,null,null,null,null,null,null,null,null,null,null,null,null,null,null,null,null,null,"Ergebnis      -      Holzernteverfahren für Steillagen",null,null,null,null,null,null,null,null,null,null,"HV 3"]
[]
[]
[]
[null,null,null,null,null,null,null,null,null,null,null,null,null,null,null,null,null,null,null,null,null,null,null,null,null,null,null,null,null,null,null,null,null,null,null,null,null,null,null,null,null,null,null,null,null,null,null,null,null,null,null,null,null,null,null,null,null,null,null,null,null,null,null,null,null,null,null,"Arbeitsort",null,null,null,null,{"$f":"Arbeitsort","v":"Heimenholz in Rheinfelden (AG)"},null,null,null,null,null,null,null,null,null,null,null,null,null,null,null,null,null,null,null,null,null,null,null,null,null,null,null,null,null,null,null,null,null,null,null,null,null,null,null,null,null,null,null,null,null,null,"Arbeitsort",null,null,null,null,{"$f":"Arbeitsort","v":"Heimenholz in Rheinfelden (AG)"},null,null,null,null,null,null,null,null,null,null,null,null,null,null,null,null,null,null,null,null,null,null,null,null,null,null,null,null,null,null,null,null,null,null,null,null,null,null,null,null,null,null,null,null,null,null,"Arbeitsort",null,null,null,null,{"$f":"Arbeitsort","v":"Heimenholz in Rheinfelden (AG)"}]
[null,null,null,null,null,null,null,null,null,null,null,null,null,null,null,null,null,null,null,null,null,null,null,null,null,null,null,null,null,null,null,null,null,null,null,null,null,null,null,null,null,null,null,null,null,null,null,null,null,null,null,null,null,null,null,null,null,null,null,null,null,null,null,null,null,null,null,"Grösse Grundwasserschutzzone S2",null,null,null,null,null,null,null,{"$f":"AR168","v":14},"ha",null,null,null,null,null,null,null,null,null,null,null,null,null,null,null,null,null,null,null,null,null,null,null,null,null,null,null,null,null,null,null,null,null,null,null,null,null,null,null,null,null,null,"Grösse Grundwasserschutzzone S2",null,null,null,null,null,null,null,{"$f":"AR168","v":14},"ha",null,null,null,null,null,null,null,null,null,null,null,null,null,null,null,null,null,null,null,null,null,null,null,null,null,null,null,null,null,null,null,null,null,null,null,null,null,null,null,null,null,null,"Grösse Grundwasserschutzzone S2",null,null,null,null,null,null,null,{"$f":"AR168","v":14},"ha"]
[null,null,null,null,null,null,null,null,null,null,null,null,null,null,null,null,null,null,null,null,null,null,null,null,null,null,null,null,null,null,null,null,null,null,null,null,null,null,null,null,null,null,null,null,null,null,null,null,null,null,null,null,null,null,null,null,null,null,null,null,null,null,null,null,null,null,null,"Grösse Grundwasserschutzzone S3",null,null,null,null,null,null,null,{"$f":"AR169","v":47},"ha",null,null,null,null,null,null,null,null,null,null,null,null,null,null,null,null,null,null,null,null,null,null,null,null,null,null,null,null,null,null,null,null,null,null,null,null,null,null,null,null,null,null,"Grösse Grundwasserschutzzone S3",null,null,null,null,null,null,null,{"$f":"AR169","v":47},"ha",null,null,null,null,null,null,null,null,null,null,null,null,null,null,null,null,null,null,null,null,null,null,null,null,null,null,null,null,null,null,null,null,null,null,null,null,null,null,null,null,null,null,"Grösse Grundwasserschutzzone S3",null,null,null,null,null,null,null,{"$f":"AR169","v":47},"ha"]
[]
[null,null,null,null,null,null,null,null,null,null,null,null,null,null,null,null,null,null,null,null,null,null,null,null,null,null,null,null,null,null,null,null,null,null,null,null,null,null,null,null,null,null,null,null,null,null,null,null,null,null,null,null,null,null,null,null,null,null,null,null,null,null,null,null,null,null,null,"Mehraufwand durch:",null,null,null,null,null,null,null,"Fr./(ha a)","%",null,null,null,null,null,null,null,null,null,null,null,null,null,null,null,null,null,null,null,null,null,null,null,null,null,null,null,null,null,null,null,null,null,null,null,null,null,null,null,null,null,null,"Mehraufwand durch:",null,null,null,null,null,null,null,"Fr./(ha a)","%",null,null,null,null,null,null,null,null,null,null,null,null,null,null,null,null,null,null,null,null,null,null,null,null,null,null,null,null,null,null,null,null,null,null,null,null,null,null,null,null,null,null,"Mehraufwand durch:",null,null,null,null,null,null,null,"Fr./(ha a)","%"]
[null,null,null,null,null,null,null,null,null,null,null,null,null,null,null,null,null,null,null,null,null,null,null,null,null,null,null,null,null,null,null,null,null,null,null,null,null,null,null,null,null,null,null,null,null,null,null,null,null,null,null,null,null,null,null,null,null,null,null,null,null,null,null,null,null,null,null,"zusätzlichen Transport (VS 3)",null,null,null,null,null,"ZKTrans",null,{"$f":"BX498","v":64.381967213114748},{"$f":"100/(BX$1623+BX$1624+BX$1625+BX$1626+BX$1627+BX$1630)*BX1623","v":19.46756561063043},null,null,null,null,null,null,null,null,null,null,null,null,null,null,null,null,null,null,null,null,null,null,null,null,null,null,null,null,null,null,null,null,null,null,null,null,null,null,null,null,null,null,"zusätzlichen Transport (VS 3)",null,null,null,null,null,"ZKTrans",null,{"$f":"DX498","v":15.060109289617486},{"$f":"100/(DX$1623+DX$1624+DX$1625+DX$1626+DX$1629)*DX1623","v":3.2428863278495381},null,null,null,null,null,null,null,null,null,null,null,null,null,null,null,null,null,null,null,null,null,null,null,null,null,null,null,null,null,null,null,null,null,null,null,null,null,null,null,null,null,null,"Auffangwannen (ES 3)",null,null,null,null,null,"ZKWanne",null,{"$f":"FX661","v":0.13770491803278689},{"$f":"100/(FX$1623+FX$1624+FX$1625+FX$1628)*FX1623","v":7.1122049392013525E-2}]
[null,null,null,null,null,null,null,null,null,null,null,null,null,null,null,null,null,null,null,null,null,null,null,null,null,null,null,null,null,null,null,null,null,null,null,null,null,null,null,null,null,null,null,null,null,null,null,null,null,null,null,null,null,null,null,null,null,null,null,null,null,null,null,null,null,null,null,"Auffangwannen (ES 3)",null,null,null,null,null,"ZKWanne",null,{"$f":"BX661","v":0.13770491803278689},{"$f":"100/(BX$1623+BX$1624+BX$1625+BX$1626+BX$1627+BX$1630)*BX1624","v":4.1638670620858007E-2},null,null,null,null,null,null,null,null,null,null,null,null,null,null,null,null,null,null,null,null,null,null,null,null,null,null,null,null,null,null,null,null,null,null,null,null,null,null,null,null,null,null,"Umsetzen auf Ausweichfläche (ES 3)",null,null,null,null,null,"ZKUms",null,{"$f":"DX835","v":3.442622950819672},{"$f":"100/(DX$1623+DX$1624+DX$1625+DX$1626+DX$1629)*DX1624","v":0.74129839860130942},null,null,null,null,null,null,null,null,null,null,null,null,null,null,null,null,null,null,null,null,null,null,null,null,null,null,null,null,null,null,null,null,null,null,null,null,null,null,null,null,null,null,"umweltverträgiche Treib- u. Schmierstoffe (ES 3)",null,null,null,null,null,"ZKTS",null,{"$f":"FX983","v":16.050311475409835},{"$f":"100/(FX$1623+FX$1624+FX$1625+FX$1628)*FX1624","v":8.2896897352606285}]
[null,null,null,null,null,null,null,null,null,null,null,null,null,null,null,null,null,null,null,null,null,null,null,null,null,null,null,null,null,null,null,null,null,null,null,null,null,null,null,null,null,null,null,null,null,null,null,null,null,null,null,null,null,null,null,null,null,null,null,null,null,null,null,null,null,null,null,"umweltverträgiche Treib- u. Schmierstoffe (ES 3)",null,null,null,null,null,"ZKTS ",null,{"$f":"BX983","v":16.050311475409835},4.8532299531062879,null,null,null,null,null,null,null,null,null,null,null,null,null,null,null,null,null,null,null,null,null,null,null,null,null,null,null,null,null,null,null,null,null,null,null,null,null,null,null,null,null,null,"umweltverträgiche Treib- u. Schmierstoffe (ES 3)",null,null,null,null,null,"ZKTS",null,{"$f":"DX983","v":4.6874590163934426},1.0093483695431686,null,null,null,null,null,null,null,null,null,null,null,null,null,null,null,null,null,null,null,null,null,null,null,null,null,null,null,null,null,null,null,null,null,null,null,null,null,null,null,null,null,null,"Betanken in S3 (ES 2)",null,null,null,null,null,"ZKTank",null,{"$f":"FX1303","v":62.929742388758783},32.5020508369523]
[null,null,null,null,null,null,null,null,null,null,null,null,null,null,null,null,null,null,null,null,null,null,null,null,null,null,null,null,null,null,null,null,null,null,null,null,null,null,null,null,null,null,null,null,null,null,null,null,null,null,null,null,null,null,null,null,null,null,null,null,null,null,null,null,null,null,null,"Betanken in S3 (ES 2)",null,null,null,null,null,"ZKTank",null,{"$f":"BX1303","v":62.929742388758783},19.028447589338018,null,null,null,null,null,null,null,null,null,null,null,null,null,null,null,null,null,null,null,null,null,null,null,null,null,null,null,null,null,null,null,null,null,null,null,null,null,null,null,null,null,null,"Entfernen von Ernterückständen (ES 2)",null,null,null,null,null,"ZKEr",null,{"$f":"DX1459","v":28.214285714285719},6.075369018468896]
[null,null,null,null,null,null,null,null,null,null,null,null,null,null,null,null,null,null,null,null,null,null,null,null,null,null,null,null,null,null,null,null,null,null,null,null,null,null,null,null,null,null,null,null,null,null,null,null,null,null,null,null,null,null,null,null,null,null,null,null,null,null,null,null,null,null,null,"Entfernen von Ernterückständen (ES 2)",null,null,null,null,null,"ZKEr",null,{"$f":"BX1459","v":28.214285714285719},8.5313245630065797,null,null,null,null,null,null,null,null,null,null,null,null,null,null,null,null,null,null,null,null,null,null,null,null,null,null,null,null,null,null,null,null,null,null,null,null,null,null,null,null,null,null,null,null,null,null,null,null,null,null,null,null,null,null,null,null,null,null,null,null,null,null,null,null,null,null,null,null,null,null,null,null,null,null,null,null,null,null,null,null,null,null,null,null,null,null,null,null,null,null,null,null,null,null,"Minderertrag durch:",null,null,null,null,null,null,null,"Fr./(ha a)","%"]
[null,null,null,null,null,null,null,null,null,null,null,null,null,null,null,null,null,null,null,null,null,null,null,null,null,null,null,null,null,null,null,null,null,null,null,null,null,null,null,null,null,null,null,null,null,null,null,null,null,null,null,null,null,null,null,null,null,null,null,null,null,null,null,null,null,null,null,null,null,null,null,null,null,null,null,null,null,null,null,null,null,null,null,null,null,null,null,null,null,null,null,null,null,null,null,null,null,null,null,null,null,null,null,null,null,null,null,null,null,null,null,null,null,null,null,null,null,null,null,"Minderertrag durch:",null,null,null,null,null,null,null,"Fr./(ha a)","%",null,null,null,null,null,null,null,null,null,null,null,null,null,null,null,null,null,null,null,null,null,null,null,null,null,null,null,null,null,null,null,null,null,null,null,null,null,null,null,null,null,null,"Erhöhung des Laubholz-Anteils (ES 3)",null,null,null,null,null,"DIFFLH NH",null,{"$f":"FX1149","v":114.5},{"$f":"100/(FX$1623+FX$1624+FX$1625+FX$1628)*FX1628","v":59.137137378395046}]
[null,null,null,null,null,null,null,null,null,null,null,null,null,null,null,null,null,null,null,null,null,null,null,null,null,null,null,null,null,null,null,null,null,null,null,null,null,null,null,null,null,null,null,null,null,null,null,null,null,null,null,null,null,null,null,null,null,null,null,null,null,null,null,null,null,null,null,"Minderertrag durch:",null,null,null,null,null,null,null,"Fr./(ha a)","%",null,null,null,null,null,null,null,null,null,null,null,null,null,null,null,null,null,null,null,null,null,null,null,null,null,null,null,null,null,null,null,null,null,null,null,null,null,null,null,null,null,null,"Erhöhung des Laubholz-Anteils (ES 3)",null,null,null,null,null,"DIFFLH NH",null,{"$f":"DX1149","v":413},{"$f":"100/(DX$1623+DX$1624+DX$1625+DX$1626+DX$1629)*DX1629","v":88.931097885537099}]
[null,null,null,null,null,null,null,null,null,null,null,null,null,null,null,null,null,null,null,null,null,null,null,null,null,null,null,null,null,null,null,null,null,null,null,null,null,null,null,null,null,null,null,null,null,null,null,null,null,null,null,null,null,null,null,null,null,null,null,null,null,null,null,null,null,null,null,"Erhöhung des Laubholz-Anteils (ES 3)",null,null,null,null,null,"DIFFLH NH",null,{"$f":"BX1149","v":159},{"$f":"100/(BX$1623+BX$1624+BX$1625+BX$1626+BX$1627+BX$1630)*BX1630","v":48.077793613297828},null,null,null,null,null,null,null,null,null,null,null,null,null,null,null,null,null,null,null,null,null,null,null,null,null,null,null,null,null,null,null,null,null,null,null,null,null,null,null,null,null,null,null,null,null,null,null,null,null,null,null,null,null,null,null,null,null,null,null,null,null,null,null,null,null,null,null,null,null,null,null,null,null,null,null,null,null,null,null,null,null,null,null,null,null,null,null,null,null,null,null,null,null,null,"Mehraufwand / Minderertrag pro Hektar und Jahr durch:",null,null,null,null,null,null,null,"Fr./(ha a)"]
[null,null,null,null,null,null,null,null,null,null,null,null,null,null,null,null,null,null,null,null,null,null,null,null,null,null,null,null,null,null,null,null,null,null,null,null,null,null,null,null,null,null,null,null,null,null,null,null,null,null,null,null,null,null,null,null,null,null,null,null,null,null,null,null,null,null,null,null,null,null,null,null,null,null,null,null,null,null,null,null,null,null,null,null,null,null,null,null,null,null,null,null,null,null,null,null,null,null,null,null,null,null,null,null,null,null,null,null,null,null,null,null,null,null,null,null,null,null,null,"Mehraufwand / Minderertrag pro Hektar und Jahr durch:",null,null,null,null,null,null,null,"Fr./(ha a)",null,null,null,null,null,null,null,null,null,null,null,null,null,null,null,null,null,null,null,null,null,null,null,null,null,null,null,null,null,null,null,null,null,null,null,null,null,null,null,null,null,null,null,"Vorschriften (VS)",null,null,null,null,null,null,null,"-"]
[null,null,null,null,null,null,null,null,null,null,null,null,null,null,null,null,null,null,null,null,null,null,null,null,null,null,null,null,null,null,null,null,null,null,null,null,null,null,null,null,null,null,null,null,null,null,null,null,null,null,null,null,null,null,null,null,null,null,null,null,null,null,null,null,null,null,null,"Mehraufwand / Minderertrag pro Hektar und Jahr durch:",null,null,null,null,null,null,null,"Fr./(ha a)",null,null,null,null,null,null,null,null,null,null,null,null,null,null,null,null,null,null,null,null,null,null,null,null,null,null,null,null,null,null,null,null,null,null,null,null,null,null,null,null,null,null,null,"Vorschriften (VS)",null,null,null,null,null,null,null,{"$f":"DX1623","v":15.060109289617486},null,null,null,null,null,null,null,null,null,null,null,null,null,null,null,null,null,null,null,null,null,null,null,null,null,null,null,null,null,null,null,null,null,null,null,null,null,null,null,null,null,null,null,"Empfehlungen (ES) ",null,null,null,null,null,null,null,{"$f":"FX1623+FX1624+FX1625+FX1628","v":193.61775878220141}]
[null,null,null,null,null,null,null,null,null,null,null,null,null,null,null,null,null,null,null,null,null,null,null,null,null,null,null,null,null,null,null,null,null,null,null,null,null,null,null,null,null,null,null,null,null,null,null,null,null,null,null,null,null,null,null,null,null,null,null,null,null,null,null,null,null,null,null,"Vorschriften (VS)",null,null,null,null,null,null,null,{"$f":"BX1623","v":64.381967213114748},null,null,null,null,null,null,null,null,null,null,null,null,null,null,null,null,null,null,null,null,null,null,null,null,null,null,null,null,null,null,null,null,null,null,null,null,null,null,null,null,null,null,null,"Empfehlungen (ES) ",null,null,null,null,null,null,null,{"$f":"DX1624+DX1625+DX1629+DX1626","v":449.34436768149885}]
[null,null,null,null,null,null,null,null,null,null,null,null,null,null,null,null,null,null,null,null,null,null,null,null,null,null,null,null,null,null,null,null,null,null,null,null,null,null,null,null,null,null,null,null,null,null,null,null,null,null,null,null,null,null,null,null,null,null,null,null,null,null,null,null,null,null,null,"Empfehlungen (ES) ",null,null,null,null,null,null,null,{"$f":"BX1624+BX1625+BX1626+BX1630+BX1627","v":266.33204449648713},null,null,null,null,null,null,null,null,null,null,null,null,null,null,null,null,null,null,null,null,null,null,null,null,null,null,null,null,null,null,null,null,null,null,null,null,null,null,null,null,null,null,null,null,null,null,null,null,null,null,null,null,null,null,null,null,null,null,null,null,null,null,null,null,null,null,null,null,null,null,null,null,null,null,null,null,null,null,null,null,null,null,null,null,null,null,null,null,null,null,null,null,null,null,null,"Mehraufwand / Minderertrag pro Jahr für die gesamte Schutzzone (S2+S3) durch:",null,null,null,null,null,null,null,"Fr./a"]
[null,null,null,null,null,null,null,null,null,null,null,null,null,null,null,null,null,null,null,null,null,null,null,null,null,null,null,null,null,null,null,null,null,null,null,null,null,null,null,null,null,null,null,null,null,null,null,null,null,null,null,null,null,null,null,null,null,null,null,null,null,null,null,null,null,null,null,null,null,null,null,null,null,null,null,null,null,null,null,null,null,null,null,null,null,null,null,null,null,null,null,null,null,null,null,null,null,null,null,null,null,null,null,null,null,null,null,null,null,null,null,null,null,null,null,null,null,null,null,"Mehraufwand / Minderertrag pro Jahr für die gesamte Schutzzone (S2+S3) durch:",null,null,null,null,null,null,null,"Fr./a",null,null,null,null,null,null,null,null,null,null,null,null,null,null,null,null,null,null,null,null,null,null,null,null,null,null,null,null,null,null,null,null,null,null,null,null,null,null,null,null,null,null,null,"Vorschriften (VS)",null,null,null,null,null,null,null,"-"]
[null,null,null,null,null,null,null,null,null,null,null,null,null,null,null,null,null,null,null,null,null,null,null,null,null,null,null,null,null,null,null,null,null,null,null,null,null,null,null,null,null,null,null,null,null,null,null,null,null,null,null,null,null,null,null,null,null,null,null,null,null,null,null,null,null,null,null,"Mehraufwand / Minderertrag pro Jahr für die gesamte Schutzzone (S2+S3) durch:",null,null,null,null,null,null,null,"Fr./a",null,null,null,null,null,null,null,null,null,null,null,null,null,null,null,null,null,null,null,null,null,null,null,null,null,null,null,null,null,null,null,null,null,null,null,null,null,null,null,null,null,null,null,"Vorschriften (VS)",null,null,null,null,null,null,null,{"$f":"DX1623*(DX1619+DX1620)","v":918.66666666666663},null,null,null,null,null,null,null,null,null,null,null,null,null,null,null,null,null,null,null,null,null,null,null,null,null,null,null,null,null,null,null,null,null,null,null,null,null,null,null,null,null,null,null,"Empfehlungen (ES) ",null,null,null,null,null,null,null,{"$f":"(FX1623+FX1624+FX1628)*(FX1619+FX1620)+FX1625*FX1619","v":8852.9853934426228}]
[null,null,null,null,null,null,null,null,null,null,null,null,null,null,null,null,null,null,null,null,null,null,null,null,null,null,null,null,null,null,null,null,null,null,null,null,null,null,null,null,null,null,null,null,null,null,null,null,null,null,null,null,null,null,null,null,null,null,null,null,null,null,null,null,null,null,null,"Vorschriften (VS)",null,null,null,null,null,null,null,{"$f":"BX1623*(BX1619+BX1620)","v":3927.2999999999997},null,null,null,null,null,null,null,null,null,null,null,null,null,null,null,null,null,null,null,null,null,null,null,null,null,null,null,null,null,null,null,null,null,null,null,null,null,null,null,null,null,null,null,"Empfehlungen (ES) ",null,null,null,null,null,null,null,{"$f":"(DX1624+DX1625+DX1629)*(DX1619+DX1620)+DX1626*DX1619","v":26083.935000000001}]
[null,null,null,null,null,null,null,null,null,null,null,null,null,null,null,null,null,null,null,null,null,null,null,null,null,null,null,null,null,null,null,null,null,null,null,null,null,null,null,null,null,null,null,null,null,null,null,null,null,null,null,null,null,null,null,null,null,null,null,null,null,null,null,null,null,null,null,"Empfehlungen (ES) ",null,null,null,null,null,null,null,{"$f":"(BX1624+BX1625+BX1630)*(BX1619+BX1620)+(BX1626+BX1627)*BX1619","v":11962.485393442623},null,null,null,null,null,null,null,null,null,null,null,null,null,null,null,null,null,null,null,null,null,null,null,null,null,null,null,null,null,null,null,null,null,null,null,null,null,null,null,null,null,null,null,null,null,null,null,null,null,null,null,null,null,null,null,null,null,null,null,null,null,null,null,null,null,null,null,null,null,null,null,null,null,null,null,null,null,null,null,null,null,null,null,null,null,null,null,null,null,null,null,null,null,null,null,"Mehraufwand / Mindertrag pro Jahr für die Gesamtfläche von:",null,null,null,null,null,null,null,"Fr./a"]
[null,null,null,null,null,null,null,null,null,null,null,null,null,null,null,null,null,null,null,null,null,null,null,null,null,null,null,null,null,null,null,null,null,null,null,null,null,null,null,null,null,null,null,null,null,null,null,null,null,null,null,null,null,null,null,null,null,null,null,null,null,null,null,null,null,null,null,null,null,null,null,null,null,null,null,null,null,null,null,null,null,null,null,null,null,null,null,null,null,null,null,null,null,null,null,null,null,null,null,null,null,null,null,null,null,null,null,null,null,null,null,null,null,null,null,null,null,null,null,"Mehraufwand / Mindertrag pro Jahr für die Gesamtfläche von:",null,null,null,null,null,null,null,"Fr./a",null,null,null,null,null,null,null,null,null,null,null,null,null,null,null,null,null,null,null,null,null,null,null,null,null,null,null,null,null,null,null,null,null,null,null,null,null,null,null,null,null,null,null,"Grundwasserschutzzone S2",null,null,null,null,null,null,null,{"$f":"(FX1628+FX1625+FX1624+FX1623)*$AR$168","v":2710.6486229508196}]
[null,null,null,null,null,null,null,null,null,null,null,null,null,null,null,null,null,null,null,null,null,null,null,null,null,null,null,null,null,null,null,null,null,null,null,null,null,null,null,null,null,null,null,null,null,null,null,null,null,null,null,null,null,null,null,null,null,null,null,null,null,null,null,null,null,null,null,"Mehraufwand / Mindertrag pro Jahr für die Gesamtfläche der:",null,null,null,null,null,null,null,"Fr./a",null,null,null,null,null,null,null,null,null,null,null,null,null,null,null,null,null,null,null,null,null,null,null,null,null,null,null,null,null,null,null,null,null,null,null,null,null,null,null,null,null,null,null,"Grundwasserschutzzone S2",null,null,null,null,null,null,null,{"$f":"(DX1629+DX1626+DX1625+DX1624+DX1623)*$AR$168","v":6501.6626775956283},null,null,null,null,null,null,null,null,null,null,null,null,null,null,null,null,null,null,null,null,null,null,null,null,null,null,null,null,null,null,null,null,null,null,null,null,null,null,null,null,null,null,null,"Grundwasserschutzzone S3",null,null,null,null,null,null,null,{"$f":"(FX1628+FX1624+FX1623)*$AR$169","v":6142.3367704918037}]
[null,null,null,null,null,null,null,null,null,null,null,null,null,null,null,null,null,null,null,null,null,null,null,null,null,null,null,null,null,null,null,null,null,null,null,null,null,null,null,null,null,null,null,null,null,null,null,null,null,null,null,null,null,null,null,null,null,null,null,null,null,null,null,null,null,null,null,"Grundwasserschutzzone S2",null,null,null,null,null,null,null,{"$f":"(BX1630+BX1627+BX1626+BX1625+BX1624+BX1623)*$AR$168","v":4629.9961639344265},null,null,null,null,null,null,null,null,null,null,null,null,null,null,null,null,null,null,null,null,null,null,null,null,null,null,null,null,null,null,null,null,null,null,null,null,null,null,null,null,null,null,null,"Grundwasserschutzzone S3",null,null,null,null,null,null,null,{"$f":"(DX1629+DX1625+DX1624+DX1623)*$AR$169","v":20500.938989071041}]
[null,null,null,null,null,null,null,null,null,null,null,null,null,null,null,null,null,null,null,null,null,null,null,null,null,null,null,null,null,null,null,null,null,null,null,null,null,null,null,null,null,null,null,null,null,null,null,null,null,null,null,null,null,null,null,null,null,null,null,null,null,null,null,null,null,null,null,"Grundwasserschutzzone S3",null,null,null,null,null,null,null,{"$f":"(BX1630+BX1625+BX1624+BX1623)*$AR$169","v":11259.789229508198}]
[]
[]
[]
[]
[]
[]
[]
[]
[]
[]
[]
[]
[]
[]
[]
[]
[]
[]
[]
[]
[]
[]
[]
[]
[]
[]
[]
[]
[]
[]
[]
[]
[]
[]
[]
[]
[]
[]
[]
[]
[]
[]
[]
[]
[]
[]
[]
[]
[]
[]
[]
[]
[]
[]
[]
[]
[]
[]
[]
[]
[]
[]
[]
[]
[]
[]
[]
[]
[]
[]
[]
[]
[]
[]
[]
[]
[]
[]
[]
[]
[]
[]
[]
[]
[]
[]
[]
[]
[]
[]
[]
[]
[]
[]
[]
[]
[]
[]
[]
[]
[]
[]
[]
[]
[]
[]
[]
[]
[]
[]
[]
[]
[]
[]
[]
[]
[]
[]
[]
[]
[]
[]
[]
[]
[]
[]
[]
[]
[]
[]
[]
[]
[]
[]
[null,null,null,null,null,null,null,null,null,null,null,null,null,null,null,null,null,null,null,null,null,null,null,null,null,null,null,null,null,null,null,null,null,null,null,null,null,null,null,null,null,null,null,null,null,null,null,null,null,null,null,null,null,null,null,null,null,null,null,null,null,null,null,null,null,null,null,null,null,null,null,null,null,null,null,null,null,null,null,null,null,null,null,null,null,null,null,null,null,null,null,null,null,null,null,null,null,null,null,null,null,null,null,null,null,null,null,null,null,null,null,null,null,null,null,null,null,null,null,null,null,null,null,null,null,null,null,null,null,null,null,null,null,null,null,null,null,null,null,null,null,null,null,null,null,null,null,null,null,null,null,null,null,null,null,null,null,null,null,null,null,null,null,null,null,null,null,null,null,null,null,null,null,null,null,null,null,null,null,null,null,null,null,null,null,null,null,null,null,null,null,null,null,null,null,null,null,null,null,null,null,null,null,"Aktuelle Holzpreise"]
[]
[]
[]
[null,null,null,null,null,null,null,null,null,null,null,null,null,null,null,null,null,null,null,null,null,null,null,null,null,null,null,null,null,null,null,null,null,null,null,null,null,null,null,null,null,null,null,null,null,null,null,null,null,null,null,null,null,null,null,null,null,null,null,null,null,null,null,null,null,null,null,null,null,null,null,null,null,null,null,null,null,null,null,null,null,null,null,null,null,null,null,null,null,null,null,null,null,null,null,null,null,null,null,null,null,null,null,null,null,null,null,null,null,null,null,null,null,null,null,null,null,null,null,null,null,null,null,null,null,null,null,null,null,null,null,null,null,null,null,null,null,null,null,null,null,null,null,null,null,null,null,null,null,null,null,null,null,null,null,null,null,null,null,null,null,null,null,null,null,null,null,null,null,null,null,null,null,null,null,null,null,null,null,null,null,null,null,null,null,null,null,null,null,null,null,null,null,null,null,null,null,null,null,null,null,null,null,"FICHTE (Fr./m3)",null,null,null,null,null,"BUCHE (Fr./m3)"]
[]
[null,null,null,null,null,null,null,null,null,null,null,null,null,null,null,null,null,null,null,null,null,null,null,null,null,null,null,null,null,null,null,null,null,null,null,null,null,null,null,null,null,null,null,null,null,null,null,null,null,null,null,null,null,null,null,null,null,null,null,null,null,null,null,null,null,null,null,null,null,null,null,null,null,null,null,null,null,null,null,null,null,null,null,null,null,null,null,null,null,null,null,null,null,null,null,null,null,null,null,null,null,null,null,null,null,null,null,null,null,null,null,null,null,null,null,null,null,null,null,null,null,null,null,null,null,null,null,null,null,null,null,null,null,null,null,null,null,null,null,null,null,null,null,null,null,null,null,null,null,null,null,null,null,null,null,null,null,null,null,null,null,null,null,null,null,null,null,null,null,null,null,null,null,null,null,null,null,null,null,null,null,null,null,null,null,null,null,null,null,null,null,null,null,null,null,null,null,null,null,null,null,null,null,"Sort.","D","C","B","A",null,"Sort.","D","C","B","A"]
[null,null,null,null,null,null,null,null,null,null,null,null,null,null,null,null,null,null,null,null,null,null,null,null,null,null,null,null,null,null,null,null,null,null,null,null,null,null,null,null,null,null,null,null,null,null,null,null,null,null,null,null,null,null,null,null,null,null,null,null,null,null,null,null,null,null,null,null,null,null,null,null,null,null,null,null,null,null,null,null,null,null,null,null,null,null,null,null,null,null,null,null,null,null,null,null,null,null,null,null,null,null,null,null,null,null,null,null,null,null,null,null,null,null,null,null,null,null,null,null,null,null,null,null,null,null,null,null,null,null,null,null,null,null,null,null,null,null,null,null,null,null,null,null,null,null,null,null,null,null,null,null,null,null,null,null,null,null,null,null,null,null,null,null,null,null,null,null,null,null,null,null,null,null,null,null,null,null,null,null,null,null,null,null,null,null,null,null,null,null,null,null,null,null,null,null,null,null,null,null,null,null,null,"1a",25,"-","-","-",null,"1a",30,"-","-","-"]
[null,null,null,null,null,null,null,null,null,null,null,null,null,null,null,null,null,null,null,null,null,null,null,null,null,null,null,null,null,null,null,null,null,null,null,null,null,null,null,null,null,null,null,null,null,null,null,null,null,null,null,null,null,null,null,null,null,null,null,null,null,null,null,null,null,null,null,null,null,null,null,null,null,null,null,null,null,null,null,null,null,null,null,null,null,null,null,null,null,null,null,null,null,null,null,null,null,null,null,null,null,null,null,null,null,null,null,null,null,null,null,null,null,null,null,null,null,null,null,null,null,null,null,null,null,null,null,null,null,null,null,null,null,null,null,null,null,null,null,null,null,null,null,null,null,null,null,null,null,null,null,null,null,null,null,null,null,null,null,null,null,null,null,null,null,null,null,null,null,null,null,null,null,null,null,null,null,null,null,null,null,null,null,null,null,null,null,null,null,null,null,null,null,null,null,null,null,null,null,null,null,null,null,"1b",25,70,80,"-",null,"1b",30,"-","-","-"]
[null,null,null,null,null,null,null,null,null,null,null,null,null,null,null,null,null,null,null,null,null,null,null,null,null,null,null,null,null,null,null,null,null,null,null,null,null,null,null,null,null,null,null,null,null,null,null,null,null,null,null,null,null,null,null,null,null,null,null,null,null,null,null,null,null,null,null,null,null,null,null,null,null,null,null,null,null,null,null,null,null,null,null,null,null,null,null,null,null,null,null,null,null,null,null,null,null,null,null,null,null,null,null,null,null,null,null,null,null,null,null,null,null,null,null,null,null,null,null,null,null,null,null,null,null,null,null,null,null,null,null,null,null,null,null,null,null,null,null,null,null,null,null,null,null,null,null,null,null,null,null,null,null,null,null,null,null,null,null,null,null,null,null,null,null,null,null,null,null,null,null,null,null,null,null,null,null,null,null,null,null,null,null,null,null,null,null,null,null,null,null,null,null,null,null,null,null,null,null,null,null,null,null,"2a",70,100,115,"-",null,"2a",30,"-","-","-"]
[null,null,null,null,null,null,null,null,null,null,null,null,null,null,null,null,null,null,null,null,null,null,null,null,null,null,null,null,null,null,null,null,null,null,null,null,null,null,null,null,null,null,null,null,null,null,null,null,null,null,null,null,null,null,null,null,null,null,null,null,null,null,null,null,null,null,null,null,null,null,null,null,null,null,null,null,null,null,null,null,null,null,null,null,null,null,null,null,null,null,null,null,null,null,null,null,null,null,null,null,null,null,null,null,null,null,null,null,null,null,null,null,null,null,null,null,null,null,null,null,null,null,null,null,null,null,null,null,null,null,null,null,null,null,null,null,null,null,null,null,null,null,null,null,null,null,null,null,null,null,null,null,null,null,null,null,null,null,null,null,null,null,null,null,null,null,null,null,null,null,null,null,null,null,null,null,null,null,null,null,null,null,null,null,null,null,null,null,null,null,null,null,null,null,null,null,null,null,null,null,null,null,null,"2b",75,105,125,"-",null,"2b",30,"-","-","-"]
[null,null,null,null,null,null,null,null,null,null,null,null,null,null,null,null,null,null,null,null,null,null,null,null,null,null,null,null,null,null,null,null,null,null,null,null,null,null,null,null,null,null,null,null,null,null,null,null,null,null,null,null,null,null,null,null,null,null,null,null,null,null,null,null,null,null,null,null,null,null,null,null,null,null,null,null,null,null,null,null,null,null,null,null,null,null,null,null,null,null,null,null,null,null,null,null,null,null,null,null,null,null,null,null,null,null,null,null,null,null,null,null,null,null,null,null,null,null,null,null,null,null,null,null,null,null,null,null,null,null,null,null,null,null,null,null,null,null,null,null,null,null,null,null,null,null,null,null,null,null,null,null,null,null,null,null,null,null,null,null,null,null,null,null,null,null,null,null,null,null,null,null,null,null,null,null,null,null,null,null,null,null,null,null,null,null,null,null,null,null,null,null,null,null,null,null,null,null,null,null,null,null,null,"3a",75,110,130,"-",null,"3a",65,65,75,500]
[null,null,null,null,null,null,null,null,null,null,null,null,null,null,null,null,null,null,null,null,null,null,null,null,null,null,null,null,null,null,null,null,null,null,null,null,null,null,null,null,null,null,null,null,null,null,null,null,null,null,null,null,null,null,null,null,null,null,null,null,null,null,null,null,null,null,null,null,null,null,null,null,null,null,null,null,null,null,null,null,null,null,null,null,null,null,null,null,null,null,null,null,null,null,null,null,null,null,null,null,null,null,null,null,null,null,null,null,null,null,null,null,null,null,null,null,null,null,null,null,null,null,null,null,null,null,null,null,null,null,null,null,null,null,null,null,null,null,null,null,null,null,null,null,null,null,null,null,null,null,null,null,null,null,null,null,null,null,null,null,null,null,null,null,null,null,null,null,null,null,null,null,null,null,null,null,null,null,null,null,null,null,null,null,null,null,null,null,null,null,null,null,null,null,null,null,null,null,null,null,null,null,null,"3b",75,110,135,"-",null,"3b",65,75,85,500]
[null,null,null,null,null,null,null,null,null,null,null,null,null,null,null,null,null,null,null,null,null,null,null,null,null,null,null,null,null,null,null,null,null,null,null,null,null,null,null,null,null,null,null,null,null,null,null,null,null,null,null,null,null,null,null,null,null,null,null,null,null,null,null,null,null,null,null,null,null,null,null,null,null,null,null,null,null,null,null,null,null,null,null,null,null,null,null,null,null,null,null,null,null,null,null,null,null,null,null,null,null,null,null,null,null,null,null,null,null,null,null,null,null,null,null,null,null,null,null,null,null,null,null,null,null,null,null,null,null,null,null,null,null,null,null,null,null,null,null,null,null,null,null,null,null,null,null,null,null,null,null,null,null,null,null,null,null,null,null,null,null,null,null,null,null,null,null,null,null,null,null,null,null,null,null,null,null,null,null,null,null,null,null,null,null,null,null,null,null,null,null,null,null,null,null,null,null,null,null,null,null,null,null,4,75,110,150,"-",null,4,65,80,110,500]
[null,null,null,null,null,null,null,null,null,null,null,null,null,null,null,null,null,null,null,null,null,null,null,null,null,null,null,null,null,null,null,null,null,null,null,null,null,null,null,null,null,null,null,null,null,null,null,null,null,null,null,null,null,null,null,null,null,null,null,null,null,null,null,null,null,null,null,null,null,null,null,null,null,null,null,null,null,null,null,null,null,null,null,null,null,null,null,null,null,null,null,null,null,null,null,null,null,null,null,null,null,null,null,null,null,null,null,null,null,null,null,null,null,null,null,null,null,null,null,null,null,null,null,null,null,null,null,null,null,null,null,null,null,null,null,null,null,null,null,null,null,null,null,null,null,null,null,null,null,null,null,null,null,null,null,null,null,null,null,null,null,null,null,null,null,null,null,null,null,null,null,null,null,null,null,null,null,null,null,null,null,null,null,null,null,null,null,null,null,null,null,null,null,null,null,null,null,null,null,null,null,null,null,5,75,105,170,600,null,5,65,85,135,500]
[null,null,null,null,null,null,null,null,null,null,null,null,null,null,null,null,null,null,null,null,null,null,null,null,null,null,null,null,null,null,null,null,null,null,null,null,null,null,null,null,null,null,null,null,null,null,null,null,null,null,null,null,null,null,null,null,null,null,null,null,null,null,null,null,null,null,null,null,null,null,null,null,null,null,null,null,null,null,null,null,null,null,null,null,null,null,null,null,null,null,null,null,null,null,null,null,null,null,null,null,null,null,null,null,null,null,null,null,null,null,null,null,null,null,null,null,null,null,null,null,null,null,null,null,null,null,null,null,null,null,null,null,null,null,null,null,null,null,null,null,null,null,null,null,null,null,null,null,null,null,null,null,null,null,null,null,null,null,null,null,null,null,null,null,null,null,null,null,null,null,null,null,null,null,null,null,null,null,null,null,null,null,null,null,null,null,null,null,null,null,null,null,null,null,null,null,null,null,null,null,null,null,null,6,75,105,190,600,null,6,65,90,145,500]
[null,null,null,null,null,null,null,null,null,null,null,null,null,null,null,null,null,null,null,null,null,null,null,null,null,null,null,null,null,null,null,null,null,null,null,null,null,null,null,null,null,null,null,null,null,null,null,null,null,null,null,null,null,null,null,null,null,null,null,null,null,null,null,null,null,null,null,null,null,null,null,null,null,null,null,null,null,null,null,null,null,null,null,null,null,null,null,null,null,null,null,null,null,null,null,null,null,null,null,null,null,null,null,null,null,null,null,null,null,null,null,null,null,null,null,null,null,null,null,null,null,null,null,null,null,null,null,null,null,null,null,null,null,null,null,null,null,null,null,null,null,null,null,null,null,null,null,null,null,null,null,null,null,null,null,null,null,null,null,null,null,null,null,null,null,null,null,null,null,null,null,null,null,null,null,null,null,null,null,null,null,null,null,null,null,null,null,null,null,null,null,null,null,null,null,null,null,null,null,null,null,null,null,"Restholz",15,null,null,null,null,"Restholz",30]
[]
[]
[null,null,null,null,null,null,null,null,null,null,null,null,null,null,null,null,null,null,null,null,null,null,null,null,null,null,null,null,null,null,null,null,null,null,null,null,null,null,null,null,null,null,null,null,null,null,null,null,null,null,null,null,null,null,null,null,null,null,null,null,null,null,null,null,null,null,null,null,null,null,null,null,null,null,null,null,null,null,null,null,null,null,null,null,null,null,null,null,null,null,null,null,null,null,null,null,null,null,null,null,null,null,null,null,null,null,null,null,null,null,null,null,null,null,null,null,null,null,null,null,null,null,null,null,null,null,null,null,null,null,null,null,null,null,null,null,null,null,null,null,null,null,null,null,null,null,null,null,null,null,null,null,null,null,null,null,null,null,null,null,null,null,null,null,null,null,null,null,null,null,null,null,null,null,null,null,null,null,null,null,null,null,null,null,null,null,null,null,null,null,null,null,null,null,null,null,null,null,null,null,null,null,null,"Für aktuelle Holzpreise siehe:"]
[null,null,null,null,null,null,null,null,null,null,null,null,null,null,null,null,null,null,null,null,null,null,null,null,null,null,null,null,null,null,null,null,null,null,null,null,null,null,null,null,null,null,null,null,null,null,null,null,null,null,null,null,null,null,null,null,null,null,null,null,null,null,null,null,null,null,null,null,null,null,null,null,null,null,null,null,null,null,null,null,null,null,null,null,null,null,null,null,null,null,null,null,null,null,null,null,null,null,null,null,null,null,null,null,null,null,null,null,null,null,null,null,null,null,null,null,null,null,null,null,null,null,null,null,null,null,null,null,null,null,null,null,null,null,null,null,null,null,null,null,null,null,null,null,null,null,null,null,null,null,null,null,null,null,null,null,null,null,null,null,null,null,null,null,null,null,null,null,null,null,null,null,null,null,null,null,null,null,null,null,null,null,null,null,null,null,null,null,null,null,null,null,null,null,null,null,null,null,null,null,null,null,null,"\"Empfehlungen zum Rundholzverkauf\" der Holzproduzenten der Kantone Aargau, beide Basel, Bern und Solothurn"]

{"sheet":"Erntekostenfreie_Erlöse","index":1,"n_rows":116,"n_cols":30,"rows_kept":116,"cut":false,"hidden":false,"merged":[[107,3,107,5],[107,6,107,8],[107,9,107,11],[101,1,101,2],[102,1,102,2],[84,1,85,1],[86,1,87,1],[88,1,89,1],[94,1,95,2],[99,1,99,2],[96,1,96,2],[97,1,97,2],[98,1,98,2],[50,26,50,29],[50,22,50,25],[50,18,50,21],[50,2,50,5],[100,1,100,2],[94,11,94,12],[95,11,95,12],[96,11,96,12],[97,11,97,12],[98,11,98,12],[99,11,99,12],[100,11,100,12],[94,3,94,4],[94,5,94,6],[94,7,94,8],[50,14,50,17],[35,1,36,1],[35,14,35,17],[35,18,35,21],[35,22,35,25],[35,26,35,29],[35,2,35,5],[35,6,35,9],[35,10,35,13],[72,1,72,2],[73,1,73,2],[50,6,50,9],[50,10,50,13],[74,1,74,2],[50,1,51,1],[68,1,68,2],[69,1,69,2],[70,1,70,2],[71,1,71,2],[3,1,4,1],[3,2,3,4],[3,6,4,6],[3,7,3,9],[16,6,16,9],[16,1,17,1],[16,2,16,5]]}
[null,"Erntekostenfreie Erlöse "]
[]
[null,"für Fichte",null,null,null,null,"für Buche"]
[null,"Bonität","Holzernteverfahren",null,null,null,"Bonität","Holzernteverfahren",null,null,null,"Die dargestellten erntekostenfreien Erlöse werden automatisch"]
[null,null,"1)","2)","3)",null,null,"1)","2)","3)",null,"auf der Benutzeroberfläche \"Differenz im erntekostenfreien "]
[null,18,{"$f":"D69-F110","v":66.947825024437975},{"$f":"D69-I110","v":513.13839077283683},{"$f":"D69-L110","v":-12.211762641520977},null,18,{"$f":"D73-F114","v":-89.346111111111099},{"$f":"D73-I114","v":115.98020499923791},{"$f":"D73-L114","v":-91.350919456027668},null,"Erlöse bei Laubholz-Erhöhung\" im Sheet \"Mehraufwand_Minderertag\""]
[null,22,{"$f":"D70-F111","v":239.36127733980504},{"$f":"D70-I111","v":795.96298961701814},{"$f":"D70-L111","v":142.52953090589585},null,22,{"$f":"D74-F115","v":46.595906909514383},{"$f":"D74-I115","v":287.51520551281698},{"$f":"D74-L115","v":9.0864753684635957},null,"übernommen."]
[null,26,{"$f":"D71-F112","v":365.15368098159502},{"$f":"D71-I112","v":1114.3726951585313},{"$f":"D71-L112","v":237.67434685936632},null,26,{"$f":"D75-F116","v":95.628997315950869},{"$f":"D75-I116","v":432.46225239728426},{"$f":"D75-L116","v":41.810908515066671}]
[null,30,{"$f":"D72-F113","v":499.95042558086038},{"$f":"D72-I113","v":1402.3278388278388},{"$f":"D72-L113","v":341.76957942565514}]
[]
[]
[]
[]
[]
[null,"Berechnung der Holzerlöse "]
[]
[null,"Sort.","Holzpreis FICHTE (Fr./m3)",null,null,null,"Holzpreis BUCHE (Fr./m3)",null,null,null,null,"Die Holzpreise werden von der Benutzeroberfläche \"Aktuelle Holzpreise\""]
[null,null,"D","C","B","A","D","C","B","A",null,"aus dem Sheet \"Mehraufwand_Minderertrag übernommen."]
[null,"1a",{"$f":"Mehraufwand_Minderertrag!GW1784","v":25},null,null,null,{"$f":"Mehraufwand_Minderertrag!HC1784","v":30}]
[null,"1b",{"$f":"Mehraufwand_Minderertrag!GW1785","v":25},{"$f":"Mehraufwand_Minderertrag!GX1785","v":70},{"$f":"Mehraufwand_Minderertrag!GY1785","v":80},null,{"$f":"Mehraufwand_Minderertrag!HC1785","v":30}]
[null,"2a",{"$f":"Mehraufwand_Minderertrag!GW1786","v":70},{"$f":"Mehraufwand_Minderertrag!GX1786","v":100},{"$f":"Mehraufwand_Minderertrag!GY1786","v":115},null,{"$f":"Mehraufwand_Minderertrag!HC1786","v":30}]
[null,"2b",{"$f":"Mehraufwand_Minderertrag!GW1787","v":75},{"$f":"Mehraufwand_Minderertrag!GX1787","v":105},{"$f":"Mehraufwand_Minderertrag!GY1787","v":125},null,{"$f":"Mehraufwand_Minderertrag!HC1787","v":30}]
[null,"3a",{"$f":"Mehraufwand_Minderertrag!GW1788","v":75},{"$f":"Mehraufwand_Minderertrag!GX1788","v":110},{"$f":"Mehraufwand_Minderertrag!GY1788","v":130},null,{"$f":"Mehraufwand_Minderertrag!HC1788","v":65},{"$f":"Mehraufwand_Minderertrag!HD1788","v":65},{"$f":"Mehraufwand_Minderertrag!HE1788","v":75},{"$f":"Mehraufwand_Minderertrag!HF1788","v":500}]
[null,"3b",{"$f":"Mehraufwand_Minderertrag!GW1789","v":75},{"$f":"Mehraufwand_Minderertrag!GX1789","v":110},{"$f":"Mehraufwand_Minderertrag!GY1789","v":135},null,{"$f":"Mehraufwand_Minderertrag!HC1789","v":65},{"$f":"Mehraufwand_Minderertrag!HD1789","v":75},{"$f":"Mehraufwand_Minderertrag!HE1789","v":85},{"$f":"Mehraufwand_Minderertrag!HF1789","v":500}]
[null,4,{"$f":"Mehraufwand_Minderertrag!GW1790","v":75},{"$f":"Mehraufwand_Minderertrag!GX1790","v":110},{"$f":"Mehraufwand_Minderertrag!GY1790","v":150},null,{"$f":"Mehraufwand_Minderertrag!HC1790","v":65},{"$f":"Mehraufwand_Minderertrag!HD1790","v":80},{"$f":"Mehraufwand_Minderertrag!HE1790","v":110},{"$f":"Mehraufwand_Minderertrag!HF1790","v":500}]
[null,5,{"$f":"Mehraufwand_Minderertrag!GW1791","v":75},{"$f":"Mehraufwand_Minderertrag!GX1791","v":105},{"$f":"Mehraufwand_Minderertrag!GY1791","v":170},{"$f":"Mehraufwand_Minderertrag!GZ1791","v":600},{"$f":"Mehraufwand_Minderertrag!HC1791","v":65},{"$f":"Mehraufwand_Minderertrag!HD1791","v":85},{"$f":"Mehraufwand_Minderertrag!HE1791","v":135},{"$f":"Mehraufwand_Minderertrag!HF1791","v":500}]
[null,6,{"$f":"Mehraufwand_Minderertrag!GW1792","v":75},{"$f":"Mehraufwand_Minderertrag!GX1792","v":105},{"$f":"Mehraufwand_Minderertrag!GY1792","v":190},{"$f":"Mehraufwand_Minderertrag!GZ1792","v":600},{"$f":"Mehraufwand_Minderertrag!HC1792","v":65},{"$f":"Mehraufwand_Minderertrag!HD1792","v":90},{"$f":"Mehraufwand_Minderertrag!HE1792","v":145},{"$f":"Mehraufwand_Minderertrag!HF1792","v":500}]
[null,"Restholz",{"$f":"Mehraufwand_Minderertrag!GW1793","v":15},null,null,null,{"$f":"Mehraufwand_Minderertrag!HC1793","v":30}]
[]
[]
[null,"Die Holzpreise (Fr./m3) werden mit den nachfolgenden Holzmengen "]
[null,"je Sortiment und Güteklasse (m3 o.R./ha) multipliziert. Die Ergebnisse"]
[null,"werden anschliessend aufsummiert und durch die Umtriebszeit dividiert."]
[]
[null,null,"Fi 18 U 120",null,null,null,"Fi 22 U 110",null,null,null,"Fi 26 U 100",null,null,null,"Fi 30 U 90",null,null,null,"Bu 18 U120",null,null,null,"Bu 22 U 120",null,null,null,"Bu 26 U 100"]
[null,"Sort.","m3 o.R./ha",null,null,null,"m3 o.R./ha",null,null,null,"m3 o.R./ha",null,null,null,"m3 o.R./ha",null,null,null,"m3 o.R./ha",null,null,null,"m3 o.R./ha",null,null,null,"m3 o.R./ha"]
[null,null,"D","C","B","A","D","C","B","A","D","C","B","A","D","C","B","A","D","C","B","A","D","C","B","A","D","C","B","A"]
[null,"1a",85,0,0,0,79,0,0,0,97,0,0,0,104,0,0,0,27,0,0,0,28,0,0,0,27,0,0,0]
[null,"1b",11,53,43,0,12,62,49,0,16,81,65,0,19,94,76,0,58,0,0,0,77,0,0,0,106,0,0,0]
[null,"2a",9,43,34,0,10,52,41,0,14,68,54,0,15,75,60,0,43,0,0,0,48,0,0,0,56,0,0,0]
[null,"2b",12,59,48,0,13,67,53,0,15,75,60,0,16,79,63,0,83,0,0,0,51,0,0,0,62,0,0,0]
[null,"3a",14,57,71,0,16,63,79,0,19,75,94,0,18,71,89,0,30,49,18,2,31,51,18,2,35,58,21,2]
[null,"3b",12,49,61,0,13,51,64,0,13,53,66,0,15,60,75,0,21,35,13,1,26,43,15,2,28,47,17,2]
[null,4,14,57,71,0,26,103,128,0,30,120,150,0,32,127,159,0,13,27,25,1,40,80,76,4,41,82,78,4]
[null,5,3,10,14,1,7,25,36,4,13,44,63,6,16,57,82,8,0,0,0,0,14,28,26,2,28,57,53,4]
[null,6,0,0,0,0,1,4,4,0,3,13,14,2,6,23,26,3,0,0,0,0,4,7,7,1,4,7,8,1]
[null,"Restholz",29,null,null,null,25,null,null,null,19,null,null,null,22,null,null,null,185,null,null,null,249,null,null,null,279]
[]
[]
[null,null,"Fi 18 U 120",null,null,null,"Fi 22 U 110",null,null,null,"Fi 26 U 100",null,null,null,"Fi 30 U 90",null,null,null,"Bu 18 U 120",null,null,null,"Bu 22 U 120",null,null,null,"Bu 26 U 100"]
[null,"Sort.","Erlös (Fr./ha)",null,null,null,"Erlös (Fr./ha)",null,null,null,"Erlös (Fr./ha)",null,null,null,"Erlös (Fr./ha)",null,null,null,"Erlös (Fr./ha)",null,null,null,"Erlös (Fr./ha)",null,null,null,"Erlös (Fr./ha)"]
[null,null,"D","C","B","A","D","C","B","A","D","C","B","A","D","C","B","A","D","C","B","A","D","C","B","A","D","C","B","A"]
[null,"1a",{"$f":"C19*C38","v":2125},0,0,0,{"$f":"C19*G38","v":1975},{"$f":"D19*H38","v":0},{"$f":"E19*I38","v":0},{"$f":"F19*J38","v":0},{"$f":"C19*K38","v":2425},{"$f":"D19*L38","v":0},{"$f":"E19*M38","v":0},{"$f":"F19*N38","v":0},{"$f":"C19*O38","v":2600},{"$f":"D19*P38","v":0},{"$f":"E19*Q38","v":0},{"$f":"F19*R38","v":0},{"$f":"G19*S38","v":810},{"$f":"H19*T38","v":0},{"$f":"I19*U38","v":0},{"$f":"J19*V38","v":0},{"$f":"G19*W38","v":840},{"$f":"H19*X38","v":0},{"$f":"I19*Y38","v":0},{"$f":"J19*Z38","v":0},{"$f":"G19*AA38","v":810},{"$f":"H19*AB38","v":0},{"$f":"I19*AC38","v":0},{"$f":"J19*AD38","v":0}]
[null,"1b",275,3710,3440,0,300,4340,3920,0,400,5670,5200,0,475,6580,6080,0,1740,0,0,0,2310,0,0,0,3180,0,0,0]
[null,"2a",630,4300,3910,0,700,5200,4715,0,980,6800,6210,0,1050,7500,6900,0,1290,0,0,0,1440,0,0,0,1680,0,0,0]
[null,"2b",900,6195,6000,0,975,7035,6625,0,1125,7875,7500,0,1200,8295,7875,0,2490,0,0,0,1530,0,0,0,1860,0,0,0]
[null,"3a",1050,6270,9230,0,1200,6930,10270,0,1425,8250,12220,0,1350,7810,11570,0,1950,3185,1350,1000,2015,3315,1350,1000,2275,3770,1575,1000]
[null,"3b",900,5390,8235,0,975,5610,8640,0,975,5830,8910,0,1125,6600,10125,0,1365,2625,1105,500,1690,3225,1275,1000,1820,3525,1445,1000]
[null,4,1050,6270,10650,0,1950,11330,19200,0,2250,13200,22500,0,2400,13970,23850,0,845,2160,2750,500,2600,6400,8360,2000,2665,6560,8580,2000]
[null,5,225,1050,2380,600,525,2625,6120,2400,975,4620,10710,3600,1200,5985,13940,4800,0,0,0,0,910,2380,3510,1000,1820,4845,7155,2000]
[null,6,0,0,0,0,75,420,760,0,225,1365,2660,1200,450,2415,4940,1800,0,0,0,0,260,630,1015,500,260,630,1160,500]
[null,"Restholz",{"$f":"C28*C47","v":435},null,null,null,{"$f":"C28*G47","v":375},null,null,null,{"$f":"C28*K47","v":285},null,null,null,{"$f":"C28*O47","v":330},null,null,null,{"$f":"G28*S47","v":5550},null,null,null,{"$f":"G28*W47","v":7470},null,null,null,{"$f":"G28*AA47","v":8370}]
[]
[null,"Summe/U",{"$f":"SUM(C53:F62)/120","v":710.16666666666663},"Fr.ha-1a-1",null,null,{"$f":"SUM(G53:J62)/110","v":1047.1818181818182},"Fr.ha-1a-1",null,null,{"$f":"SUM(K53:N62)/100","v":1453.85},"Fr.ha-1a-1",null,null,{"$f":"SUM(O53:R62)/90","v":1813.5},"Fr.ha-1a-1",null,null,{"$f":"SUM(S53:V62)/120","v":260.125},"Fr.ha-1a-1",null,null,{"$f":"SUM(W53:Z62)/120","v":483.54166666666669},"Fr.ha-1a-1",null,null,{"$f":"SUM(AA53:AD62)/100","v":704.85},"Fr.ha-1a-1"]
[]
[]
[null,"Erlös je Baumart und Bonität in Fr. pro Hektar und Jahr (Fr.ha-1a-1): "]
[]
[null,"Fi 18 U 120:",null,{"$f":"C64","v":710.16666666666663},"Fr.ha-1a-1"]
[null,"Fi 22 U 110:",null,{"$f":"G64","v":1047.1818181818182},"Fr.ha-1a-1"]
[null,"Fi 26 U 100:",null,{"$f":"K64","v":1453.85},"Fr.ha-1a-1"]
[null,"Fi 30 U 90:",null,{"$f":"O64","v":1813.5},"Fr.ha-1a-1"]
[null,"Bu 18 U 120:",null,{"$f":"S64","v":260.125},"Fr.ha-1a-1"]
[null,"Bu 22 U 120:",null,{"$f":"W64","v":483.54166666666669},"Fr.ha-1a-1"]
[null,"Bu 26 U 100:",null,{"$f":"AA64","v":704.85},"Fr.ha-1a-1"]
[]
[]
[]
[]
[]
[null,"Berechnung der Holzerntekosten"]
[]
[null,"Kostenansätze (Fr./h) für die verschiedenen Arbeitsverfahren nach VSFU:"]
[]
[null,"1)","motormanuelle Holzernte (Regielohn 2010):",null,null,null,null,null,{"$f":"Mehraufwand_Minderertrag!BX328","v":75},"Fr./h","Die Kostenansätze werden aus dem Excel-Sheet \"Mehraufwand_Minderertrag\" "]
[null,null,"Forstspezialschlepper (inkl. 83 Fr./h für Maschinist):",null,null,null,null,null,{"$f":"Mehraufwand_Minderertrag!BX331","v":190},"Fr./h","von den Benutzeroberflächen \"HV 1\", \"HV 2\" und \"HV 3\" übernommen"]
[null,"2)","Radharvester (inkl. Fahrer):",null,null,null,null,null,{"$f":"Mehraufwand_Minderertrag!DX328","v":300},"Fr./h"]
[null,null,"Forwarder (inkl. Fahrer):",null,null,null,null,null,{"$f":"Mehraufwand_Minderertrag!DX331","v":200},"Fr./h"]
[null,"3)","motormanuelle Holzernte (Regielohn 2010):",null,null,null,null,null,{"$f":"Mehraufwand_Minderertrag!FX328","v":75},"Fr./h"]
[null,null,"Mobilseilkran (inkl. Maschinist):",null,null,null,null,null,{"$f":"Mehraufwand_Minderertrag!FX331","v":230},"Fr./h"]
[]
[]
[null,"Produktivität je Holzernteverfahren und Prozess (m3/PSH15), berechnet mit HeProMo:",null,null,null,null,null,null,null,null,null,"Anfallende Holzmenge (Vol. i.R. + Rest) über den Zeitraum U, berechnet mit SorSim:"]
[]
[null,null,null,"1)",null,"2)",null,"3)",null,null,null,"Fi 18 U 120:",null,949,"m3"]
[null,null,null,"manuell","Schlepper","Harvester","Forwarder","manuell","Seilkran",null,null,"Fi 22 U 110:",null,1201,"m3"]
[null,"Fi 18 U 120",null,1.32,7.75,18.8,22.33,1.1000000000000001,9.93,null,null,"Fi 26 U 100:",null,1485,"m3"]
[null,"Fi 22 U 110",null,1.48,8.15,21.1,22.75,1.24,10.28,null,null,"Fi 30 U 90:",null,1650,"m3"]
[null,"Fi 26 U 100",null,1.5,8.15,21.4,22.62,1.26,10.28,null,null,"Bu 18 U 120:",null,658,"m3"]
[null,"Fi 30 U 90",null,1.54,8.2799999999999994,22,22.75,1.29,10.39,null,null,"Bu 22 U 120:",null,970,"m3"]
[null,"Bu 18 U 120",null,2.25,6.25,17.5,21.87,1.9,9.34,null,null,"Bu 26 U 100:",null,1158,"m3"]
[null,"Bu 22 U 120",null,2.4700000000000002,8.02,19.8,21.98,2.08,10.16]
[null,"Bu 26 U 100",null,2.56,8.15,20.8,21.98,2.15,10.28]
[]
[]
[null,"Erntekosten je Holzernteverfahren und Prozess (Fr.ha-1a-1): "]
[]
[null,null,null,"1)",null,null,"2)",null,null,"3)",null,null,null,"Die dargestellten Holzerntekosten berechnen sich nach folgender Formel:"]
[null,null,null,"manuell","Schlepper","gesamt","Harvester","Forwarder","gesamt","manuell","Seilkran","gesamt"]
[null,"Fi 18 U",120,{"$f":"((1/D97)*I$85*N95)/C110","v":449.33712121212119},{"$f":"((1/E97)*I$86*N95)/C110","v":193.88172043010752},{"$f":"D110+E110","v":643.21884164222865},{"$f":"((1/F97)*I$87*N95)/C110","v":126.19680851063829},{"$f":"((1/G97)*I$88*N95)/C110","v":70.831467383191523},{"$f":"G110+H110","v":197.0282758938298},{"$f":"((1/H97)*I$89*N95)/C110","v":539.20454545454538},{"$f":"((1/I97)*I$90*N95)/C110","v":183.17388385364217},{"$f":"J110+K110","v":722.37842930818761}]
[null,"Fi 22 U",110,553.2862407862408,254.53430005577243,{"$f":"D111+E111","v":807.8205408420132},155.23481258078414,95.984015984015983,{"$f":"G111+H111","v":251.21882856480011},{"$f":"((1/H98)*I$89*N96)/C111","v":660.37390029325525},244.27838698266712,{"$f":"J111+K111","v":904.65228727592239}]
[null,"Fi 26 U",100,742.5,346.19631901840489,1088.6963190184049,208.17757009345794,131.29973474801056,339.47730484146848,883.92857142857133,332.2470817120622,1216.1756531406336]
[null,"Fi 30 U",90,892.85714285714289,420.69243156199678,1313.5495744191396,250,161.1721611721612,411.17216117216117,1065.8914728682171,405.83894770612767,1471.7304205743449]
[null,"Bu 18 U",120,182.77777777777774,166.69333333333333,349.4711111111111,94,50.144795000762073,144.14479500076209,216.44736842105263,135.02855103497501,351.47591945602767]
[null,"Bu 22 U",120,245.44534412955463,191.50041562759768,436.9457597571523,122.47474747474747,73.551713679102221,196.02646115384971,291.46634615384613,182.98884514435696,474.45519129820309]
[null,"Bu 26 U",100,339.2578125,269.9631901840491,609.22100268404915,167.01923076923075,105.36851683348499,272.38774760271576,403.95348837209298,259.08560311284043,663.03909148493335]